Workbook

Sheet Cover
D7: Draft Clean Fuel Supply Forecast
D8: BRG Work Product for the Washington State Department of Commerce
D9: 2022-09-02

Sheet Credits-Deficits -->

Sheet Cred-Def Summary
B2: Credits/Deficits/Bank Balance Summary Table
B4: Year | C4: Fueling Related Credit Generation | D4: Fueling Related Deficit Generation | E4: Non-Fueling Capacity and Infrastructure Credits | F4: Net Credit Generation | G4: Bank Beginning Balance | H4: Bank Ending Balance
B5: 2023 | C5: =SUMIF('Credits Generated'!$C6:$K6,">0") -> 1132779.1 | D5: =SUMIF('Credits Generated'!$C6:$K6,"<0") -> -511620.3939 | E5: =C5*(1/19) -> 59619.95266 | F5: =SUM(C5:E5) -> 680778.6593 | G5: 0 | H5: =G5+F5 -> 680778.6593
B6: 2024 | C6: =SUMIF('Credits Generated'!$C7:$K7,">0") -> 1289305.293 | D6: =SUMIF('Credits Generated'!$C7:$K7,"<0") -> -725973.8359 | E6: =C6*(1/19) -> 67858.17329 | F6: =SUM(C6:E6) -> 631189.6299 | G6: =H5 -> 680778.6593 | H6: =G6+F6 -> 1311968.289

Sheet Credits Generated
B2: Credits Generation
B4: Credits Generated by Fuel Type
B5: Year | C5: Gasoline | D5: Ethanol | E5: Electricity | F5: Diesel | G5: Biodiesel | H5: Renewable Diesel | I5: Natural Gas | J5: RNG | K5: Propane | L5: Total
B6: 2023 | C6: =(C11*'Fuel Consumption + Conversions'!C5)/(10^6) -> -432009.3549 | D6: =(D11*'Fuel Consumption + Conversions'!D5)/(10^6) -> 612841.5062 | E6: =(E11*'Fuel Consumption + Conversions'!G5)/(10^6) -> 58629.67308 | F6: =(F11*'Fuel Consumption + Conversions'!H5)/(10^6) -> -79611.039 | G6: =(G11*'Fuel Consumption + Conversions'!I5)/(10^6) -> 243690.9114 | H6: =(H11*'Fuel Consumption + Conversions'!J5)/(10^6) -> 211381.7794 | I6: =(I11*'Fuel Consumption + Conversions'!K5)/(10^6) -> 60.39226625 | J6: =(J11*'Fuel Consumption + Conversions'!L5)/(10^6) -> 358.496014 | K6: =(K11*'Fuel Consumption + Conversions'!M5)/(10^6) -> 5816.342212 | L6: =SUM(C6:K6) -> 621158.7066
B7: 2024 | C7: =(C12*'Fuel Consumption + Conversions'!C6)/(10^6) -> -596262.7644 | D7: =(D12*'Fuel Consumption + Conversions'!D6)/(10^6) -> 610577.2563 | E7: =(E12*'Fuel Consumption + Conversions'!G6)/(10^6) -> 73103.80511 | F7: =(F12*'Fuel Consumption + Conversions'!H6)/(10^6) -> -129711.0715 | G7: =(G12*'Fuel Consumption + Conversions'!I6)/(10^6) -> 288961.3271 | H7: =(H12*'Fuel Consumption + Conversions'!J6)/(10^6) -> 310387.2601 | I7: =(I12*'Fuel Consumption + Conversions'!K6)/(10^6) -> 34.92104034 | J7: =(J12*'Fuel Consumption + Conversions'!L6)/(10^6) -> 392.1519112 | K7: =(K12*'Fuel Consumption + Conversions'!M6)/(10^6) -> 5848.570915 | L7: =SUM(C7:K7) -> 563331.4566
B9: Fuel Substitute CI Differentials
B10: Year | C10: Gasoline | D10: Ethanol | E10: Electricity | F10: Diesel | G10: Biodiesel | H10: Renewable Diesel | I10: Natural Gas | J10: RNG | K10: Propane
B11: 2023 | C11: ='CI Targets and Inputs'!C7-'CI Targets and Inputs'!$C$13 -> -1.38785 | D11: ='CI Targets and Inputs'!C7-'CI Targets and Inputs'!$C$14 -> 25.92215 | E11: ='CI Targets and Inputs'!C7-'CI Targets and Inputs'!$C$21 -> 81.57509118 | F11: ='CI Targets and Inputs'!D7-'CI Targets and Inputs'!$C$15 -> -0.7646 | G11: ='CI Targets and Inputs'!D7-'CI Targets and Inputs'!$C$16 -> 45.0854 | H11: ='CI Targets and Inputs'!D7-'CI Targets and Inputs'!$C$17 -> 49.3354 | I11: ='CI Targets and Inputs'!D7-'CI Targets and Inputs'!$C$18 -> 22.5654 | J11: ='CI Targets and Inputs'!D7-'CI Targets and Inputs'!$C$19 -> 35.8954 | K11: ='CI Targets and Inputs'!D7-'CI Targets and Inputs'!$C$20 -> 24.3054
B12: 2024 | C12: ='CI Targets and Inputs'!C8-'CI Targets and Inputs'!$C$13 -> -1.8857 | D12: ='CI Targets and Inputs'!C8-'CI Targets and Inputs'!$C$14 -> 25.4243 | E12: ='CI Targets and Inputs'!C8-'CI Targets and Inputs'!$C$21 -> 81.07724118 | F12: ='CI Targets and Inputs'!D8-'CI Targets and Inputs'!$C$15 -> -1.2692 | G12: ='CI Targets and Inputs'!D8-'CI Targets and Inputs'!$C$16 -> 44.5808 | H12: ='CI Targets and Inputs'!D8-'CI Targets and Inputs'!$C$17 -> 48.8308 | I12: ='CI Targets and Inputs'!D8-'CI Targets and Inputs'!$C$18 -> 22.0608 | J12: ='CI Targets and Inputs'!D8-'CI Targets and Inputs'!$C$19 -> 35.3908 | K12: ='CI Targets and Inputs'!D8-'CI Targets and Inputs'!$C$20 -> 23.8008

Sheet Fuel Consumption + Conversions
B2: Energy Consumption per Fuel (MJ)
B4: Year | C4: Gasoline | D4: Ethanol | E4: Electricity (BEV) | F4: Electricity (PHEV) | G4: Total Electricity | H4: Diesel | I4: Biodiesel | J4: Renewable Diesel | K4: Natural Gas | L4: Renewable Natural Gas (Landfill) | M4: Propane
B5: 2023 | C5: =(('Summary Table '!H$5*(10^6))*$E$10)/(10^6)*$G$10 -> 3.112795726e+11 | D5: =(('Summary Table '!H6*(10^6))*$E$11)/(10^6)*$G$11 -> 2.364161561e+10 | E5: =('Summary Table '!H15*'Fuel Consumption + Conversions'!$E$18)/(10^6)*'Fuel Consumption + Conversions'!$G$18 -> 625910253.7 | F5: =('Summary Table '!H16*'Fuel Consumption + Conversions'!$E$18)/(10^6)*'Fuel Consumption + Conversions'!$G$18 -> 92810035.04 | G5: =SUM(Table812[[#This Row],[Electricity (BEV)]:[Electricity (PHEV)]]) -> 718720288.7 | H5: =('Summary Table '!H9*(10^6))*$E$12/(10^6)*$G$12 -> 1.041211601e+11 | I5: =(('Summary Table '!H$10*(10^6)*'Fuel Consumption + Conversions'!$E$13/(10^6))*'Fuel Consumption + Conversions'!$G$13) -> 5405095916 | J5: =(('Summary Table '!H12*(10^6))*'Fuel Consumption + Conversions'!$E$14/(10^6))*'Fuel Consumption + Conversions'!$G$14 -> 4284586309 | K5: =('Summary Table '!H18*(10^6))*'Fuel Consumption + Conversions'!$E$12/(10^6)*'Fuel Consumption + Conversions'!$G$12 -> 2676321.548 | L5: =('Summary Table '!H19*(10^6))*'Fuel Consumption + Conversions'!$E$12/(10^6)*'Fuel Consumption + Conversions'!$G$12 -> 9987241.095 | M5: =('Summary Table '!H22*(10^6)*'Fuel Consumption + Conversions'!$E$17)/(10^6)*$G$17 -> 239302468.3
B6: 2024 | C6: =(('Summary Table '!I$5*(10^6))*$E$10)/(10^6)*$G$10 -> 3.162023463e+11 | D6: =(('Summary Table '!I6*(10^6))*$E$11)/(10^6)*$G$11 -> 2.40154992e+10 | E6: =('Summary Table '!I15*'Fuel Consumption + Conversions'!$E$18)/(10^6)*'Fuel Consumption + Conversions'!$G$18 -> 796379644.1 | F6: =('Summary Table '!I16*'Fuel Consumption + Conversions'!$E$18)/(10^6)*'Fuel Consumption + Conversions'!$G$18 -> 105276653.7 | G6: =SUM(Table812[[#This Row],[Electricity (BEV)]:[Electricity (PHEV)]]) -> 901656297.8 | H6: =('Summary Table '!I9*(10^6))*$E$12/(10^6)*$G$12 -> 1.021990793e+11 | I6: =(('Summary Table '!I$10*(10^6)*'Fuel Consumption + Conversions'!$E$13/(10^6))*'Fuel Consumption + Conversions'!$G$13) -> 6481743870 | J6: =(('Summary Table '!I12*(10^6))*'Fuel Consumption + Conversions'!$E$14/(10^6))*'Fuel Consumption + Conversions'!$G$14 -> 6356382860 | K6: =('Summary Table '!I18*(10^6))*'Fuel Consumption + Conversions'!$E$12/(10^6)*'Fuel Consumption + Conversions'!$G$12 -> 1582945.33 | L6: =('Summary Table '!I19*(10^6))*'Fuel Consumption + Conversions'!$E$12/(10^6)*'Fuel Consumption + Conversions'!$G$12 -> 11080617.31 | M6: =('Summary Table '!I22*(10^6)*'Fuel Consumption + Conversions'!$E$17)/(10^6)*$G$17 -> 245730013.9
C8: Conversion Units
C9: Fuel | D9: Units >> | E9: Energy Density to Btu | F9: Units>> | G9: Energy Density to MJ
C10: Gasoline | D10: Btu/Gal | E10: 120238 | F10: MJ/MMBtu | G10: 1055
C11: Ethanol | D11: Btu/Gal | E11: 84530 | F11: MJ/MMBtu | G11: 1055
C12: Diesel | D12: Btu/Gal | E12: 138490 | F12: MJ/MMBtu | G12: 1055
C13: Biodiesel (Soybean) | D13: Btu/Gal | E13: 127960 | F13: MJ/MMBtu | G13: 1055
C14: Renewable Diesel (Soybean) | D14: Btu/Gal | E14: 138490 | F14: MJ/MMBtu | G14: 1055
C15: Natural Gas | D15: Btu/Dge | E15: 138490 | F15: MJ/MMBtu | G15: 1055
C16: Renewable Natural Gas (Landfill) | D16: Btu/Dge | E16: 138490 | F16: MJ/MMBtu | G16: 1055
C17: Propane | D17: Btu/Gal | E17: 91420 | F17: MJ/MMBtu | G17: 1055
C18: Electricity | D18: Btu/GWh | E18: =3412*(10^6) -> 3412000000 | F18: MJ/MMBtu | G18: 1055
C19: Electricity | D19: KWh/GGE | E19: 33.7
B21: Sources and Notes:
B22: Conversions: Alternative Fuel Data Center, https://afdc.energy.gov/fuels/equivalency_methodology.html; U.S. Department of Energy, EERE, https://www.fueleconomy.gov/feg/noframes/43403.shtml

Sheet CI Targets and Inputs
B2: CI Targets and Factor Inputs
B4: CI Targets
B5: Year | C5: Gasoline | D5: Diesel | E5: CI Target % Reduction
E6: [1]
B7: 2023 | C7: =D13*(1-Table7[[#This Row],[CI Target % Reduction]]) -> 99.07215 | D7: =D15*(1-Table7[[#This Row],[CI Target % Reduction]]) -> 100.4154 | E7: 0.005
B8: 2024 | C8: =D13*(1-Table7[[#This Row],[CI Target % Reduction]]) -> 98.5743 | D8: =D15*(1-Table7[[#This Row],[CI Target % Reduction]]) -> 99.9108 | E8: 0.01
B10: CI Factor Inputs
B11: Fuel | C11: CI Input for Credit Calculations | D11: Washington CI for Target Setting
C12: [2] | D12: [3]
B13: Gasoline | C13: 100.46 | D13: 99.57
B14: Ethanol | C14: 73.15 | D14: NA
B15: Diesel | C15: 101.18 | D15: 100.92
B16: Biodiesel (Soybean) | C16: 55.33 | D16: NA
B17: Renewable Diesel (Soybean) | C17: 51.08 | D17: NA
B18: Natural Gas | C18: 77.85 | D18: NA
B19: Renewable Natural Gas (Landfill) | C19: 64.52 | D19: NA
B20: Propane | C20: 76.11 | D20: NA
B21: Electricity (Post-EER Adjustment) | C21: =59.49/C23 -> 17.49705882 | D21: NA
B23: Washington EER Adjustment | C23: 3.4
B25: Sources and Notes:
B26: [1]: Washington Clean Fuels Program, Chapter 70A.535 RCW, https://app.leg.wa.gov/RCW/default.aspx?cite=70A.535.025
B27: [2]-[3]: CI Inputs from Washington-GREET model, from Department of Ecology, as created by Life Cycle Associates on July 15, 2022.

Sheet Availability + Consumption -->

Sheet Summary Table
C2: Summary Table of Fuel Consumption Forecasts
C4: Fuel Type | D4: Unit | E4: Citation Reference | F4: 2021 | G4: 2022 | H4: 2023 | I4: 2024
C5: Fossil Gasoline | D5: MM Gallons | E5: [1] | F5: ='Gas & Diesel Forecast Data'!K$6-F$6 -> 2250.835 | G5: ='Gas & Diesel Forecast Data'!L$6-G$6 -> 2399.7475 | H5: ='Gas & Diesel Forecast Data'!M$6-H$6 -> 2453.8975 | I5: ='Gas & Diesel Forecast Data'!N$6-I$6 -> 2492.705
C6: Ethanol | D6: MM Gallons | E6: [2] | F6: ='Gas & Diesel Forecast Data'!K$6*'Summary Table '!F$7 -> 243.165 | G6: ='Gas & Diesel Forecast Data'!L$6*'Summary Table '!G$7 -> 259.2525 | H6: ='Gas & Diesel Forecast Data'!M$6*'Summary Table '!H$7 -> 265.1025 | I6: ='Gas & Diesel Forecast Data'!N$6*'Summary Table '!I$7 -> 269.295
C7: Ethanol Blend Rate | D7: % | E7: [3] | F7: 0.0975 | G7: 0.0975 | H7: 0.0975 | I7: 0.0975
C8: Total Gasoline | D8: MM Gallons | E8: [4] | F8: =SUM(F5:F6) -> 2494 | G8: =SUM(G5:G6) -> 2659 | H8: =SUM(H5:H6) -> 2719 | I8: 2762
C9: Fossil Diesel | D9: MM Gallons | E9: [5] | F9: ='Gas & Diesel Forecast Data'!K$10-SUM(F$10,F$12) -> 707.85 | G9: ='Gas & Diesel Forecast Data'!L$10-SUM(G$10,G$12) -> 757.575 | H9: ='Gas & Diesel Forecast Data'!M$10-SUM(H$10,H$12) -> 712.6366 | I9: ='Gas & Diesel Forecast Data'!N$10-SUM(I$10,I$12) -> 699.4813
C10: Biodiesel | D10: MM Gallons | E10: [6] | F10: ='Gas & Diesel Forecast Data'!K$10*'Summary Table '!F$11 -> 18.15 | G10: ='Gas & Diesel Forecast Data'!L$10*'Summary Table '!G$11 -> 19.425 | H10: ='Gas & Diesel Forecast Data'!M$10*'Summary Table '!H$11 -> 40.0384 | I10: ='Gas & Diesel Forecast Data'!N$10*'Summary Table '!I$11 -> 48.0137
C11: Biodiesel Blend Rate | D11: % | E11: [7] | F11: 0.025 | G11: 0.025 | H11: 0.0512 | I11: =Table2[[#This Row],[2023]]+0.0095 -> 0.0607
C12: Renewable Diesel | D12: MM Gallons | E12: [8] | F12: ='Gas & Diesel Forecast Data'!K$10*'Summary Table '!F$13 -> 0 | G12: ='Gas & Diesel Forecast Data'!L$10*'Summary Table '!G$13 -> 0 | H12: ='Gas & Diesel Forecast Data'!M$10*'Summary Table '!H$13 -> 29.325 | I12: ='Gas & Diesel Forecast Data'!N$10*'Summary Table '!I$13 -> 43.505
C13: Renewable Diesel Blend Rate | D13: % | E13: [9] | F13: 0 | G13: 0 | H13: 0.0375 | I13: 0.055
C14: Total Diesel | D14: MM Gallons | E14: [10] | F14: =SUM(F9:F10,F12) -> 726 | G14: =SUM(G9:G10,G12) -> 777 | H14: 782 | I14: =SUM(I9:I10,I12) -> 791
C15: Electricity (BEVs) | D15: GWh | E15: [11] | F15: =('Vehicle Stock Forecast'!K$39*'Washington EV Data'!$F$7)/1000000 -> 102.9189572 | G15: =('Vehicle Stock Forecast'!L$39*'Washington EV Data'!$F$7)/1000000 -> 130.3743841 | H15: =('Vehicle Stock Forecast'!M$39*'Washington EV Data'!$F$7)/1000000 -> 173.8803814 | I15: =('Vehicle Stock Forecast'!N$39*'Washington EV Data'!$F$7)/1000000 -> 221.2374625
C16: Electricity (PHEVs) | D16: GWh | E16: [12] | F16: =('Vehicle Stock Forecast'!K$40*'Washington EV Data'!$F$15)/1000000 -> 19.9038891 | G16: =('Vehicle Stock Forecast'!L$40*'Washington EV Data'!$F$15)/1000000 -> 22.2027883 | H16: =('Vehicle Stock Forecast'!M$40*'Washington EV Data'!$F$15)/1000000 -> 25.78300035 | I16: =('Vehicle Stock Forecast'!N$40*'Washington EV Data'!$F$15)/1000000 -> 29.24627705
C17: Electricity | D17: MM Gallons Gasoline Equivalent | E17: [13] | F17: =(F15/'Fuel Consumption + Conversions'!$E$19)+(F16/'Fuel Consumption + Conversions'!$E$19) -> 3.644594845 | G17: =(G15/'Fuel Consumption + Conversions'!$E$19)+(G16/'Fuel Consumption + Conversions'!$E$19) -> 4.527512533 | H17: =(H15/'Fuel Consumption + Conversions'!$E$19)+(H16/'Fuel Consumption + Conversions'!$E$19) -> 5.924729428 | I17: =(I15/'Fuel Consumption + Conversions'!$E$19)+(I16/'Fuel Consumption + Conversions'!$E$19) -> 7.432751914
C18: Natural Gas | D18: MM Diesel Gallons Equivalent | E18: [14] | F18: =F21-F19 -> 0.08667323932 | G18: =G21-G19 -> 0.08667323932 | H18: =H21-H19 -> 0.01831755127 | I18: =I21-I19 -> 0.01083415491
C19: Renewable Natural Gas | D19: MM Diesel Gallons Equivalent | E19: [15] | F19: =F21*F20 -> 0 | G19: =G21*G20 -> 0 | H19: =H21*H20 -> 0.06835568804 | I19: =I21*I20 -> 0.0758390844
C20: Renewable Natural Gas Blend Rate | D20: % | E20: [16] | F20: 0 | G20: 0 | H20: 0.7886596669 | I20: 0.875
C21: Total Natural Gas | D21: MM Diesel Gallons Equivalent | E21: [17] | F21: =((('CNG Vehicle Registrations'!$F$7*'CNG Vehicle Registrations'!$F$8)*'Fuel Consumption + Conversions'!$E$10)/'Fuel Consumption + Conversions'!$E$15)/(10^6) -> 0.08667323932 | G21: =((('CNG Vehicle Registrations'!$F$7*'CNG Vehicle Registrations'!$F$8)*'Fuel Consumption + Conversions'!$E$10)/'Fuel Consumption + Conversions'!$E$15)/(10^6) -> 0.08667323932 | H21: =((('CNG Vehicle Registrations'!$F$7*'CNG Vehicle Registrations'!$F$8)*'Fuel Consumption + Conversions'!$E$10)/'Fuel Consumption + Conversions'!$E$15)/(10^6) -> 0.08667323932 | I21: =((('CNG Vehicle Registrations'!$F$7*'CNG Vehicle Registrations'!$F$8)*'Fuel Consumption + Conversions'!$E$10)/'Fuel Consumption + Conversions'!$E$15)/(10^6) -> 0.08667323932
C22: Propane | D22: MM Gallons | E22: [18] | F22: ='Propane EIA Data'!F$5*'Propane EIA Data'!$F$9 -> 1.973644231 | G22: ='Propane EIA Data'!G$5*'Propane EIA Data'!$F$9 -> 2.298312978 | H22: ='Propane EIA Data'!H$5*'Propane EIA Data'!$F$9 -> 2.481152747 | I22: ='Propane EIA Data'!I$5*'Propane EIA Data'!$F$9 -> 2.547795279
C25: Sources and Notes:
C26: [1]: 'Gas & Diesel Forecast Data' less ethanol blend volume
C27: [2]: 'Gas & Diesel Forecast Data' multiplied by Ethanol Blend Rate.
C28: [3]: BRG analysis based on historical experience in Oregon and California and other market trends
C29: [5]: 'Gas & Diesel Forecast Data' less Biodiesel and Renewable Diesel blend volumes.
C30: [6]: 'Gas & Diesel Forecast Data' multiplied by Biodiesel Blend Rate.
C31: [7]: BRG analysis based on historical experience in Oregon and California and other market trends.
C32: [8]: 'Gas & Diesel Forecast Data' multiplied by Renewable Diesel Blend Rate.
C33: [9]: BRG analysis based on historical experience in Oregon and California and other market trends.
C34: [11]: 'Vehicle Stock Forecast' for BEVs times the average annual electricity consumption for BEVs in Washington.
C35: [12]: 'Vehicle Stock Forecast' for PHEVs times the average annual electricity consumption for PHEVs in Washington. 10% of PHEV vehicle miles traveled is assumed to be gasoline powered.
C36: [14]: Natural gas consumption less volume of Renewable Natural Gas consumption.
C37: [15]: Total Natural Gas consumption multiplied by the renewable natural gas blend rate.
C38: [16]: Renewable natural gas produced in Washington is typically exported to California or Oregon to take advantage of multiple incentive structures. With the implementation of a CFS the blendrate of RNG is assumed to the same rates projected in Oregon.
C39: [17]: 'CNG Vehicles Registrations' times average annual CNG consumption per vehicle. Converted into MM Diesel Gallons Equivalent.
C40: [18]: Using Washington's historical consumption BRG has allocated the projected propane consumption using the EIA AEO Pacific Consumption Forecast. Due to an identified data limitation BRG relied upon the average allocation to Washington from 2014 through 2019.

Sheet Gasoline + Alts Forecast
B2: Gasoline and Gasoline Alternatives Consumption Forecast
B4: Fuel Type | C4: Unit | D4: Citation Reference | E4: 2021 | F4: 2022 | G4: 2023 | H4: 2024
B5: Fossil Gasoline | C5: MM Gallons | D5: [1] | E5: ='Gas & Diesel Forecast Data'!K$6-E6 -> 2250.835 | F5: ='Gas & Diesel Forecast Data'!L$6-F6 -> 2399.7475 | G5: ='Gas & Diesel Forecast Data'!M$6-G6 -> 2453.8975 | H5: ='Gas & Diesel Forecast Data'!N$6-H6 -> 2492.705
B6: Ethanol | C6: MM Gallons | D6: [2] | E6: ='Gas & Diesel Forecast Data'!K$6*E$7 -> 243.165 | F6: ='Gas & Diesel Forecast Data'!L$6*'Summary Table '!G$7 -> 259.2525 | G6: ='Gas & Diesel Forecast Data'!M$6*'Summary Table '!H$7 -> 265.1025 | H6: ='Gas & Diesel Forecast Data'!N$6*'Summary Table '!I$7 -> 269.295
B7: Ethanol Blend Rate | C7: % | D7: [3] | E7: 0.0975 | F7: 0.0975 | G7: 0.0975 | H7: 0.0975
B8: Total Gasoline | C8: MM Gallons | D8: [4] | E8: =SUM(E5:E6) -> 2494 | F8: =SUM(F5:F6) -> 2659 | G8: =SUM(G5:G6) -> 2719 | H8: =SUM(H5:H6) -> 2762
B10: Sources & Notes:
B11: [1]: 'Gas & Diesel Forecast Data' less Ethanol blend volume.
B12: [2]: 'Gas & Diesel Forecast Data' times Ethanol blend percentage.
B13: [3]: BRG analysis based on historical experience in Oregon and California and other market trends.

Sheet Petroleum Availability
B2: Petroleum Production and Available Capacity (2022)
B4: Conversion: | C4: Barrels to Gallons | D4: 42
B6: Product | D6: Gallons (EIA) | E6: % of barrel
B7: Finished motor gasoline | C7: [1] | D7: 19.4 | E7: =D7/D4 -> 0.4619047619
B8: Distillate fuel oil | D8: 13.44 | E8: =D8/D4 -> 0.32
C10: Crude Oil Distillation Operable Capacity | D10: Gasoline | E10: Diesel
B11: State | C11: (MM Barrels per Calendar Day) | D11: (MM gal/ year) | E11: (MM gal/year)
C12: [2]
B13: East Coast (PADD 1)
B14: Delaware | C14: 0.171 | D14: =(C14*365)*$D$4*$E$7 -> 1210.851 | E14: =(C14*365)*$D$4*$E$8 -> 838.8576
B15: Florida | C15: 0 | D15: =(C15*365)*$D$4*$E$7 -> 0 | E15: =(C15*365)*$D$4*$E$8 -> 0
B16: Georgia | C16: 0 | D16: 0 | E16: 0
B17: Maryland | C17: 0 | D17: 0 | E17: 0
B18: New Jersey | C18: 0.3585 | D18: 2538.5385 | E18: 1758.6576
B19: New York | C19: 0 | D19: 0 | E19: 0
B20: North Carolina | C20: 0 | D20: 0 | E20: 0
B21: Pennsylvania | C21: 0.266 | D21: 1883.546 | E21: 1304.8896
B22: Virginia | C22: 0 | D22: 0 | E22: 0
B23: West Virginia | C23: 0.0223 | D23: 157.9063 | E23: 109.39488
B24: Midwest (PADD 2)
B25: Illinois | C25: 1.040065 | D25: 7364.700265 | E25: 5102.142864
B26: Indiana | C26: 0.4673 | D26: 3308.9513 | E26: 2292.38688
B27: Kansas | C27: 0.4042 | D27: 2862.1402 | E27: 1982.84352
B28: Kentucky | C28: 0.291 | D28: 2060.571 | E28: 1427.5296
B29: Michigan | C29: 0.14 | D29: 991.34 | E29: 686.784
B30: Minnesota | C30: 0.439 | D30: 3108.559 | E30: 2153.5584
B31: Missouri | C31: 0 | D31: 0 | E31: 0
B32: Nebraska | C32: 0 | D32: 0 | E32: 0
B33: North Dakota | C33: 0.071 | D33: 502.751 | E33: 348.2976
B34: Ohio | C34: 0.6026 | D34: 4267.0106 | E34: 2956.11456
B35: Oklahoma | C35: 0.5238 | D35: 3709.0278 | E35: 2569.55328
B36: Tennessee | C36: 0.18 | D36: 1274.58 | E36: 883.008
B37: Wisconsin | C37: 0.038 | D37: 269.078 | E37: 186.4128
B38: Gulf Coast (PADD 3)
B39: Alabama | C39: 0.1411 | D39: 999.1291 | E39: 692.18016
B40: Arkansas | C40: 0.0905 | D40: 640.8305 | E40: 443.9568
B41: Louisiana | C41: 2.922541 | D41: 20694.51282 | E41: 14336.81713
B42: Mississippi | C42: 0.39394 | D42: 2789.48914 | E42: 1932.512064
B43: New Mexico | C43: 0.11 | D43: 778.91 | E43: 539.616
B44: Texas | C44: 5.948529 | D44: 42121.53385 | E44: 29181.10386
B45: Rocky Mountain (PADD 4)
B46: Colorado | C46: 0.103 | D46: 729.343 | E46: 505.2768
B47: Montana | C47: 0.2276 | D47: 1611.6356 | E47: 1116.51456
B48: Utah | C48: 0.206714 | D48: 1463.741834 | E48: 1014.056198
B49: Wyoming | C49: 0.12585 | D49: 891.14385 | E49: 617.36976
B50: West Coast (PADD 5)
B51: Alaska | C51: 0.1642 | D51: 1162.7002 | E51: 805.49952
B52: Arizona | C52: 0 | D52: 0 | E52: 0
B53: California | C53: 1.749871 | D53: 12390.83655 | E53: 8584.167178
B54: Hawaii | C54: 0.0935 | D54: 662.0735 | E54: 458.6736
B55: Nevada | C55: 0.002 | D55: 14.162 | E55: 9.8112
B56: Oregon | C56: 0 | D56: 0 | E56: 0
B57: Washington | C57: 0.6497 | D57: 4600.5257 | E57: 3187.16832
B58: PADD 1 | C58: =SUM(C14:C23) -> 0.8178 | D58: =SUM(D14:D23) -> 5790.8418 | E58: =SUM(E14:E23) -> 4011.79968
B59: PADD 2 | C59: =SUM(C25:C37) -> 4.196965 | D59: =SUM(D25:D37) -> 29718.70917 | E59: =SUM(E25:E37) -> 20588.6315
B60: PADD 3 | C60: =SUM(C39:C44) -> 9.60661 | D60: =SUM(D39:D44) -> 68024.40541 | E60: =SUM(E39:E44) -> 47126.18602
B61: PADD 4 | C61: =SUM(C46:C49) -> 0.663164 | D61: =SUM(D46:D49) -> 4695.864284 | E61: =SUM(E46:E49) -> 3253.217318
B62: PADD 5 | C62: =SUM(C51:C57) -> 2.659271 | D62: =SUM(D51:D57) -> 18830.29795 | E62: =SUM(E51:E57) -> 13045.31982
B63: U.S. | C63: =SUM(C58:C62) -> 17.94381 | D63: =SUM(D58:D62) -> 127060.1186 | E63: =SUM(E58:E62) -> 88025.15434
B65: Sources:
B66: Conversions: US Energy Information Administration, Units and Calculators, https://www.eia.gov/energyexplained/units-and-calculators/energy-conversion-calculators.php
B67: [1] Petroleum products produced from one 42-gallon barrel of oil input at U.S. refineries, 2020, https://www.eia.gov/energyexplained/oil-and-petroleum-products/refining-crude-oil-inputs-and-outputs.php
B68: [2] U.S. Energy Information Administration, Number and Capacity of Petroleum Refineries, accessed as of Sept. 2, 2022. https://www.eia.gov/dnav/pet/pet_pnp_cap1_dcu_nus_a.htm

Sheet Ethanol Availability
B2: Ethanol Production (2022)
B4: State | C4: Number of Producers | D4: Production Capacity
D5: (MM gal/year) | E5: (Thousand Barrels/day)
C6: [1] | D6: [2]
B7: East Coast (PADD 1)
B8: New York | C8: 2 | D8: 62 | E8: 4.044357469
B9: North Carolina | C9: 1 | D9: 57 | E9: 3.718199609
B10: Pennsylvania | C10: 1 | D10: 128 | E10: 8.349641226
B11: Midwest (PADD 2)
B12: Illinois | C12: 13 | D12: 1743 | E12: 113.6986301
B13: Indiana | C13: 14 | D13: 1315 | E13: 85.77951729
B14: Iowa | C14: 41 | D14: 4694 | E14: 306.1969993
B15: Kansas | C15: 12 | D15: 601 | E15: 38.81278539
B16: Kentucky | C16: 2 | D16: 53 | E16: 3.13111546
B17: Michigan | C17: 5 | D17: 387 | E17: 25.2446184
B18: Minnesota | C18: 19 | D18: 1424 | E18: 92.88975864
B19: Missouri | C19: 6 | D19: 331 | E19: 21.59165036
B20: Nebraska | C20: 24 | D20: 2244 | E20: 146.3796477
B21: North Dakota | C21: 5 | D21: 547 | E21: 35.68166993
B22: Ohio | C22: 7 | D22: 722 | E22: 47.09719504
B23: South Dakota | C23: 16 | D23: 1444 | E23: 94.19439008
B24: Tennessee | C24: 3 | D24: 236 | E24: 15.32941944
B25: Wisconsin | C25: 9 | D25: 587 | E25: 38.29093281
B26: Gulf Coast (PADD 3)
B27: Texas | C27: 3 | D27: 380 | E27: 24.78799739
B28: Rocky Mountains (PADD 4)
B29: Colorado | C29: 3 | D29: 140 | E29: 9.132420091
B30: Idaho | C30: 1 | D30: 60 | E30: 3.913894325
B31: West Coast (PADD 5)
B32: California | C32: 4 | D32: 188 | E32: 12.06784083
B33: Oregon | C33: 1 | D33: 40 | E33: 2.609262883
B34: PADD 1 | C34: =SUM(C8:C10) -> 4 | D34: =SUM(D8:D10) -> 247 | E34: =SUM(E8:E10) -> 16.1121983
B35: PADD 2 | C35: =SUM(C12:C25) -> 176 | D35: =SUM(D12:D25) -> 16328 | E35: =SUM(E12:E25) -> 1064.31833
B36: PADD 3 | C36: =C27 -> 3 | D36: =D27 -> 380 | E36: =E27 -> 24.78799739
B37: PADD 4 | C37: =SUM(C29:C30) -> 4 | D37: =SUM(D29:D30) -> 200 | E37: =SUM(E29:E30) -> 13.04631442
B38: PADD 5 | C38: =SUM(C32:C33) -> 5 | D38: =SUM(D32:D33) -> 228 | E38: =SUM(E32:E33) -> 14.67710372
B39: US Total | C39: =SUM(C34:C38) -> 192 | D39: =SUM(D34:D38) -> 17383 | E39: =SUM(E34:E38) -> 1132.941944
B41: Sources and Notes:
B42: [1]-[2]: U.S. Energy Information Administration, U.S. Fuel Ethanol Plant Production Capacity, accessed as of Sept. 2, 2022. https://www.eia.gov/petroleum/ethanolcapacity/

Sheet Diesel + Alts Cons Forecast
B2: Diesel and Diesel Alternatives Volume Consumption Forecast
B4: Fuel Type | C4: Unit | D4: Citation Reference | E4: 2021 | F4: 2022 | G4: 2023 | H4: 2024
B5: Fossil Diesel | C5: MM Gallons | D5: [1] | E5: ='Gas & Diesel Forecast Data'!K$10-SUM(E$6,E$8) -> 707.85 | F5: ='Gas & Diesel Forecast Data'!L$10-SUM(F$6,F$8) -> 757.575 | G5: ='Gas & Diesel Forecast Data'!M$10-SUM(G$6,G$8) -> 712.6366 | H5: ='Gas & Diesel Forecast Data'!N$10-SUM(H$6,H$8) -> 699.4813
B6: Biodiesel | C6: MM Gallons | D6: [2] | E6: ='Gas & Diesel Forecast Data'!K$10*E$7 -> 18.15 | F6: ='Gas & Diesel Forecast Data'!L$10*F$7 -> 19.425 | G6: ='Gas & Diesel Forecast Data'!M$10*G$7 -> 40.0384 | H6: ='Gas & Diesel Forecast Data'!N$10*H$7 -> 48.0137
B7: Biodiesel Blend Rate | C7: % | D7: [3] | E7: 0.025 | F7: 0.025 | G7: 0.0512 | H7: =G7+0.0095 -> 0.0607
B8: Renewable Diesel | C8: MM Gallons | D8: [4] | E8: ='Gas & Diesel Forecast Data'!K$10*E$9 -> 0 | F8: ='Gas & Diesel Forecast Data'!L$10*F$9 -> 0 | G8: ='Gas & Diesel Forecast Data'!M$10*G$9 -> 29.325 | H8: ='Gas & Diesel Forecast Data'!N$10*H$9 -> 43.505
B9: Renewable Diesel Blend Rate | C9: % | D9: [5] | E9: 0 | F9: 0 | G9: 0.0375 | H9: 0.055
B10: Total Diesel | C10: MM Gallons | D10: [6] | E10: =SUM(E5:E6,E8) -> 726 | F10: =SUM(F5:F6,F8) -> 777 | G10: 782 | H10: 791
B12: Sources and Notes:
B13: [1]: 'Gas & Diesel Forecast Data' less Biodiesel and Renewable Diesel blend volumes.
B14: [2]: 'Gas & Diesel Forecast Data' times Biodiesel blend percentage.
B15: [3]: BRG analysis based on historical experience in Oregon and California and other market trends.
B16: [4]: 'Gas & Diesel Forecast Data' times Renewable Diesel blend percentage.
B17: [5]: BRG analysis based on historical experience in Oregon and California and other market trends.

Sheet Biodiesel Availability
B2: Biodiesel Production (2022)
B4: State | C4: Number of Producers | D4: Production Capacity
D5: (MM gal/year) | E5: (Thousand Barrels/day)
C6: [1] | D6: [2]
B7: East Coast PADD 1
B8: Connecticut | C8: 1 | D8: 35 | E8: 2.283105023
B9: Georgia | C9: 2 | D9: 22 | E9: 1.304631442
B10: Massachusetts | C10: 1 | D10: 1 | E10: 0
B11: Maine | C11: 1 | D11: 1 | E11: 0
B12: North Carolina | C12: 1 | D12: 2 | E12: 0
B13: New Hampshire | C13: 1 | D13: 8 | E13: 0.5218525766
B14: Pennsylvania | C14: 2 | D14: 64 | E14: 4.174820613
B15: Rhode Island | C15: 1 | D15: 8 | E15: 0.5
B16: South Carolina | C16: 1 | D16: 5 | E16: 0
B17: Virginia | C17: 3 | D17: 11 | E17: 0
B18: Midwest (PADD 2)
B19: Iowa | C19: 11 | D19: 470 | E19: 30.65883888
B20: Illinois | C20: 4 | D20: 192 | E20: 12.26353555
B21: Indiana | C21: 3 | D21: 107 | E21: 6.457925636
B22: Kansas | C22: 1 | D22: 90 | E22: 5.870841487
B23: Kentucky | C23: 2 | D23: 56 | E23: 3.522504892
B24: Michigan | C24: 2 | D24: 15 | E24: 0.9784735812
B25: Minnesota | C25: 3 | D25: 85 | E25: 5.348988911
B26: Missouri | C26: 6 | D26: 238 | E26: 15.19895629
B27: North Dakota | C27: 1 | D27: 85 | E27: 5.544683627
B28: Oklahoma | C28: 1 | D28: 38 | E28: 2.478799739
B29: Tennessee | C29: 1 | D29: 36 | E29: 2.348336595
B30: Wisconsin | C30: 2 | D30: 33 | E30: 1.826484018
B31: Gulf Coast (PADD 3)
B32: Alabama | C32: 1 | D32: 20 | E32: 1.304631442
B33: Arkansas | C33: 3 | D33: 115 | E33: 7.501630789
B34: Mississippi | C34: 2 | D34: 29 | E34: 1.89171559
B35: Texas | C35: 6 | D35: 291 | E35: 18.98238748
B36: West Coast (PADD 5)
B37: Alaska | C37: 1 | D37: 0 | E37: 0
B38: Arizona | C38: 1 | D38: 2 | E38: 0
B39: California | C39: 4 | D39: 72 | E39: 4.69667319
B40: Hawaii | C40: 1 | D40: 6 | E40: 0
B41: Oregon | C41: 1 | D41: 12 | E41: 0.782778865
B42: Washington | C42: 1 | D42: 107 | E42: 6.979778213
B43: PADD 1 | C43: =SUM(C8:C17) -> 14 | D43: =SUM(D8:D17) -> 157 | E43: =SUM(E8:E17) -> 8.784409654
B44: PADD 2 | C44: =SUM(C19:C30) -> 37 | D44: =SUM(D19:D30) -> 1445 | E44: =SUM(E19:E30) -> 92.49836921
B45: PADD 3 | C45: =SUM(C32:C35) -> 12 | D45: =SUM(D32:D35) -> 455 | E45: =SUM(E32:E35) -> 29.6803653
B46: PADD 4
B47: PADD 5 | C47: =SUM(C37:C42) -> 9 | D47: =SUM(D37:D42) -> 199 | E47: =SUM(E37:E42) -> 12.45923027
B48: US Total | C48: =SUM(C43:C47) -> 72 | D48: =SUM(D43:D47) -> 2256 | E48: =SUM(E43:E47) -> 143.4223744
B50: Sources and Notes:
B51: [1]: U.S. Energy Information Administration, U.S. Biodiesel Plant Production Capacity, accessed as of Sept. 2, 2022. https://www.eia.gov/biofuels/biodiesel/capacity/
B52: [2]: U.S. Energy Information Administration, U.S. Biodiesel Plant Production Capacity, accessed as of Sept. 2, 2022. https://www.eia.gov/biofuels/biodiesel/capacity/

Sheet Renewable Diesel Availability
B2: Renewable Diesel Availability (2023)
B4: State | C4: Number of Producers | D4: Production Capacity
D5: (MM gal/year) | E5: (Thousand Barrels/day)
D6: [1]
B7: Midwest (PADD 2)
B8: Kansas | C8: 1 | D8: 3 | E8: 0
B9: North Dakota | C9: 1 | D9: 192 | E9: 12.52446184
B10: Gulf Coast (PADD 3)
B11: Louisiana | C11: 2 | D11: 1082 | E11: 70.58056099
B12: Rocky Mountains (PADD 4)
B13: Wyoming | C13: 2 | D13: 209 | E13: 13.63339856
B14: West Coast (PADD 5)
B15: California | C15: 4 | D15: 199 | E15: 12.58969341
B16: Washington* | C16: 2 | D16: 175 | E16: 4.007123288
B17: PADD 1
B18: PADD 2 | C18: =SUM(C8:C9) -> 2 | D18: =SUM(D8:D9) -> 195 | E18: =SUM(E8:E9) -> 12.52446184
B19: PADD 3 | C19: =C11 -> 2 | D19: =D11 -> 1082 | E19: =E11 -> 70.58056099
B20: PADD 4 | C20: =C13 -> 2 | D20: =D13 -> 209 | E20: =E13 -> 13.63339856
B21: PADD 5 | C21: =SUM(C15:C16) -> 6 | D21: =SUM(D15:D16) -> 374 | E21: =SUM(E15:E16) -> 16.5968167
B22: US Total | C22: =SUM(C17:C21) -> 12 | D22: =SUM(D17:D21) -> 1860 | E22: =SUM(E17:E21) -> 113.3352381
B24: Sources and Notes:
B25: [1]: U.S. Energy Information Administration, U.S. Renewable Diesel Fuel and Other Biofuels Plant Production Capacity, accessed as of Sept. 2, 2022. https://www.eia.gov/biofuels/renewable/capacity/
B26: * Cherry Point Refinery is expected to be operational by 2023. BP, BP investing almost $270 million to improve efficiency, reduce emissions and grow renewable diesel production at Cherry Point Refinery, https://www.bp.com/en/global/corporate/news-and-insights/press-releases/bp-investing-almost-270m-to-improve-efficiency-reduce-emissions-and-grow-renewable-diesel-production-at-cherry-point-refinery.html

Sheet Electricity Cons Forecast
B2: Electricity Consumption Forecast
B4: Fuel Type | C4: Unit | D4: Citation Reference | E4: 2021 | F4: 2022 | G4: 2023 | H4: 2024
B5: Electricity (BEVs) | C5: GWh | D5: [1] | E5: =('Vehicle Stock Forecast'!K$39*'Washington EV Data'!$F$7)/1000000 -> 102.9189572 | F5: =('Vehicle Stock Forecast'!L$39*'Washington EV Data'!$F$7)/1000000 -> 130.3743841 | G5: =('Vehicle Stock Forecast'!M$39*'Washington EV Data'!$F$7)/1000000 -> 173.8803814 | H5: =('Vehicle Stock Forecast'!N$39*'Washington EV Data'!$F$7)/1000000 -> 221.2374625
B6: Electricity (PHEVs) | C6: GWh | D6: [2] | E6: =('Vehicle Stock Forecast'!K$40*'Washington EV Data'!$F$15)/1000000 -> 19.9038891 | F6: =('Vehicle Stock Forecast'!L$40*'Washington EV Data'!$F$15)/1000000 -> 22.2027883 | G6: =('Vehicle Stock Forecast'!M$40*'Washington EV Data'!$F$15)/1000000 -> 25.78300035 | H6: =('Vehicle Stock Forecast'!N$40*'Washington EV Data'!$F$15)/1000000 -> 29.24627705
B7: Electricity | C7: MM Gallons Gasoline Equivalent | D7: [3] | E7: =(E5/'Fuel Consumption + Conversions'!$E$19)+(E6/'Fuel Consumption + Conversions'!$E$19) -> 3.644594845 | F7: =(F5/'Fuel Consumption + Conversions'!$E$19)+(F6/'Fuel Consumption + Conversions'!$E$19) -> 4.527512533 | G7: =(G5/'Fuel Consumption + Conversions'!$E$19)+(G6/'Fuel Consumption + Conversions'!$E$19) -> 5.924729428 | H7: =(H5/'Fuel Consumption + Conversions'!$E$19)+(H6/'Fuel Consumption + Conversions'!$E$19) -> 7.432751914
B9: Sources and Notes:
B10: [1]: 'Vehicle Stock Forecast' for BEVs times the average annual electricity consumption for BEVs in Washington.
B11: [2]: 'Vehicle Stock Forecast' for PHEVs times the average annual electricity consumption for PHEVs in Washington. 10% of PHEV vehicle miles traveled is assumed to be gasoline powered.

Sheet Electricity Availability
B2: Electricity Generation Availability (2020)
B4: Interconnection | C4: State | D4: Generation Available | E4: Generation Available
D5: (GWh/year) | E5: MM GGE
D6: [1] | E6: [2]
B7: WECC | C7: AZ | D7: 109305.057 | E7: =D7/'Fuel Consumption + Conversions'!$E$19 -> 3243.473501
B8: WECC | C8: CA | D8: 193074.93 | E8: =D8/'Fuel Consumption + Conversions'!$E$19 -> 5729.226409
B9: WECC | C9: CO | D9: 54115.011 | E9: =D9/'Fuel Consumption + Conversions'!$E$19 -> 1605.786677
B10: WECC | C10: ID | D10: 17686.135 | E10: =D10/'Fuel Consumption + Conversions'!$E$19 -> 524.8111276
B11: WECC | C11: NV | D11: 40424.745 | E11: =D11/'Fuel Consumption + Conversions'!$E$19 -> 1199.547329
B12: WECC | C12: OR | D12: 63624.782 | E12: =D12/'Fuel Consumption + Conversions'!$E$19 -> 1887.975727
B13: WECC | C13: UT | D13: 37087.309 | E13: =D13/'Fuel Consumption + Conversions'!$E$19 -> 1100.51362
B14: WECC | C14: WA | D14: 116114.468 | E14: =D14/'Fuel Consumption + Conversions'!$E$19 -> 3445.533175
B15: Rest of WECC* | D15: 32407.459 | E15: =D15/'Fuel Consumption + Conversions'!$E$19 -> 961.6456677
B16: Total WECC | D16: =SUM(D7:D15) -> 663839.896 | E16: =D16/'Fuel Consumption + Conversions'!$E$19 -> 19698.51323
B18: Sources and Notes:
B19: [1]: U.S. Energy Information Administration, Generation Tables, accessed as of Sept. 2, 2022. https://www.eia.gov/electricity/annual/html/epa_03_07.html
B20: * Rest of WECC: Balance of WECC generation not accounted for by state in the above. https://www.eia.gov/electricity/gridmonitor/dashboard/

Sheet Natural Gas + RNG Forecast
B2: Natural Gas and Renewable Natural Gas Consumption Forecast
B4: Fuel Type | C4: Unit | D4: Citation Reference | E4: 2021 | F4: 2022 | G4: 2023 | H4: 2024
B5: Natural Gas | C5: MM Diesel Gallons Equivalent | D5: [1] | E5: =E8-E6 -> 0.1149842538 | F5: =F8-F6 -> 0.1149842538 | G5: =G8-G6 -> 0.02430081051 | H5: =H8-H6 -> 0.01437303173
B6: Renewable Natural Gas | C6: MM Diesel Gallons Equivalent | D6: [2] | E6: =E8*E7 -> 0 | F6: =F8*F7 -> 0 | G6: =G8*G7 -> 0.09068344331 | H6: =H8*H7 -> 0.1006112221
B7: Renewable Natural Gas Blend Rate | C7: % | D7: [3] | E7: 0 | F7: 0 | G7: 0.7886596669 | H7: 0.875
B8: Total Natural Gas | C8: MM Diesel Gallons Equivalent | D8: [4] | E8: =((('CNG Vehicle Registrations'!$F$7*'CNG Vehicle Registrations'!$F$8)*'Fuel Consumption + Conversions'!$E$15)/'Fuel Consumption + Conversions'!$E$10)/(10^6) -> 0.1149842538 | F8: =((('CNG Vehicle Registrations'!$F$7*'CNG Vehicle Registrations'!$F$8)*'Fuel Consumption + Conversions'!$E$15)/'Fuel Consumption + Conversions'!$E$10)/(10^6) -> 0.1149842538 | G8: =((('CNG Vehicle Registrations'!$F$7*'CNG Vehicle Registrations'!$F$8)*'Fuel Consumption + Conversions'!$E$15)/'Fuel Consumption + Conversions'!$E$10)/(10^6) -> 0.1149842538 | H8: =((('CNG Vehicle Registrations'!$F$7*'CNG Vehicle Registrations'!$F$8)*'Fuel Consumption + Conversions'!$E$15)/'Fuel Consumption + Conversions'!$E$10)/(10^6) -> 0.1149842538
B10: Sources and Notes:
B11: [1]: 'CNG Vehicle Registrations' times average annual CNG consumption per vehicle. Converted into MMCF.
B12: [2]: Renewable natural gas produced in Washington is typically exported to California or Oregon to take advantage of multiple incentive structures. With the implementation of a CFS the blendrate of RNG is assumed to increase year over year.
B13: [3]: BRG analysis based on historical experience in Oregon and California and other market trends.

Sheet Natural Gas Availability
B2: Natural Gas Production (2022)
B4: Conversion
B5: cubic feet to Btu | C5: 1039
B6: cubic meter to cubic feet | C6: 35.336
B8: State | C8: Production Capacity
C9: (Million cu ft) | D9: (Million DGE)
C10: [1]
B11: East Coast (PADD 1)
B12: Florida | C12: 698 | D12: =(C12*$C$5)/'Fuel Consumption + Conversions'!$E$15 -> 5.236638024
B13: Maryland | C13: 10 | D13: =(C13*$C$5)/'Fuel Consumption + Conversions'!$E$15 -> 0.0750234674
B14: New York | C14: 9692 | D14: =(C14*$C$5)/'Fuel Consumption + Conversions'!$E$15 -> 72.7127446
B15: Pennsylvania | C15: 7148295 | D15: =(C15*$C$5)/'Fuel Consumption + Conversions'!$E$15 -> 53628.98769
B16: Virginia | C16: 102824 | D16: =(C16*$C$5)/'Fuel Consumption + Conversions'!$E$15 -> 771.4213012
B17: West Virginia | C17: 2592319 | D17: =(C17*$C$5)/'Fuel Consumption + Conversions'!$E$15 -> 19448.476
B18: Midwest (PADD 2)
B19: Illinois | C19: 1843 | D19: =(C19*$C$5)/'Fuel Consumption + Conversions'!$E$15 -> 13.82682504
B20: Indiana | C20: 4197 | D20: =(C20*$C$5)/'Fuel Consumption + Conversions'!$E$15 -> 31.48734927
B21: Kansas | C21: 163356 | D21: =(C21*$C$5)/'Fuel Consumption + Conversions'!$E$15 -> 1225.553354
B22: Kentucky | C22: 71018 | D22: =(C22*$C$5)/'Fuel Consumption + Conversions'!$E$15 -> 532.8016608
B23: Michigan | C23: 64911 | D23: =(C23*$C$5)/'Fuel Consumption + Conversions'!$E$15 -> 486.9848292
B24: Missouri | C24: 1 | D24: =(C24*$C$5)/'Fuel Consumption + Conversions'!$E$15 -> 0.00750234674
B25: Nebraska | C25: 351 | D25: =(C25*$C$5)/'Fuel Consumption + Conversions'!$E$15 -> 2.633323706
B26: North Dakota | C26: 882443 | D26: =(C26*$C$5)/'Fuel Consumption + Conversions'!$E$15 -> 6620.393364
B27: Ohio | C27: 2378902 | D27: =(C27*$C$5)/'Fuel Consumption + Conversions'!$E$15 -> 17847.34766
B28: Oklahoma | C28: 2786366 | D28: =(C28*$C$5)/'Fuel Consumption + Conversions'!$E$15 -> 20904.28388
B29: South Dakota | C29: 407 | D29: =(C29*$C$5)/'Fuel Consumption + Conversions'!$E$15 -> 3.053455123
B30: Tennessee | C30: 2770 | D30: =(C30*$C$5)/'Fuel Consumption + Conversions'!$E$15 -> 20.78150047
B31: Gulf Coast (PADD 3)
B32: Alabama | C32: 117028 | D32: =(C32*$C$5)/'Fuel Consumption + Conversions'!$E$15 -> 877.9846343
B33: Arkansas | C33: 480982 | D33: =(C33*$C$5)/'Fuel Consumption + Conversions'!$E$15 -> 3608.49374
B34: Louisiana | C34: 3206163 | D34: =(C34*$C$5)/'Fuel Consumption + Conversions'!$E$15 -> 24053.74653
B35: Mississippi | C35: 28134 | D35: =(C35*$C$5)/'Fuel Consumption + Conversions'!$E$15 -> 211.0710232
B36: New Mexico | C36: 1948168 | D36: =(C36*$C$5)/'Fuel Consumption + Conversions'!$E$15 -> 14615.83184
B37: Texas | C37: 9336110 | D37: =(C37*$C$5)/'Fuel Consumption + Conversions'!$E$15 -> 70042.73442
B38: Rocky Mountains (PADD 4)
B39: Colorado | C39: 1990462 | D39: =(C39*$C$5)/'Fuel Consumption + Conversions'!$E$15 -> 14933.1361
B40: Montana | C40: 37963 | D40: =(C40*$C$5)/'Fuel Consumption + Conversions'!$E$15 -> 284.8115893
B41: Utah | C41: 241989 | D41: =(C41*$C$5)/'Fuel Consumption + Conversions'!$E$15 -> 1815.485385
B42: Wyoming | C42: 1306368 | D42: =(C42*$C$5)/'Fuel Consumption + Conversions'!$E$15 -> 9800.825706
B43: West Coast (PADD 5)
B44: Alaska | C44: 338329 | D44: =(C44*$C$5)/'Fuel Consumption + Conversions'!$E$15 -> 2538.26147
B45: Arizona | C45: 66 | D45: =(C45*$C$5)/'Fuel Consumption + Conversions'!$E$15 -> 0.4951548848
B46: California | C46: 170579 | D46: =(C46*$C$5)/'Fuel Consumption + Conversions'!$E$15 -> 1279.742805
B47: Nevada | C47: 12 | D47: =(C47*$C$5)/'Fuel Consumption + Conversions'!$E$15 -> 0.09002816088
B48: Oregon | C48: 320 | D48: =(C48*$C$5)/'Fuel Consumption + Conversions'!$E$15 -> 2.400750957
B49: PADD 1 | C49: =SUM(C12:C17) -> 9853838 | D49: =SUM(D12:D17) -> 73926.90939
B50: PADD 2 | C50: =SUM(C19:C30) -> 6356565 | D50: =SUM(D19:D30) -> 47689.1547
B51: PADD 3 | C51: =SUM(C32:C37) -> 15116585 | D51: =SUM(D32:D37) -> 113409.8622
B52: PADD 4 | C52: =SUM(C39:C42) -> 3576782 | D52: =SUM(D39:D42) -> 26834.25878
B53: PADD 5 | C53: =SUM(C44:C48) -> 509306 | D53: =SUM(D44:D48) -> 3820.990209
B54: US Total | C54: =SUM(C49:C53) -> 35413076 | D54: =SUM(D49:D53) -> 265681.1753
B55: Alberta, CA2 | C55: =104.009*$C$6*1000 -> 3675262.024 | D55: =(C55*$C$5)/'Fuel Consumption + Conversions'!$E$15 -> 27573.09006
B56: British Columbia, CA3 | C56: =52.82*$C$6*1000 -> 1866447.52 | D56: =(C56*$C$5)/'Fuel Consumption + Conversions'!$E$15 -> 14002.73647
B58: Sources and Notes:
B59: Conversions: Alternative Fuel Data Center, https://afdc.energy.gov/fuels/equivalency_methodology.html. U.S. Energy Information Administration, Units and Calculators, https://www.eia.gov/energyexplained/units-and-calculators/energy-conversion-calculators.php
B60: [1]: U.S. Energy Information Administration, Natural Gas Plant Field Production, accessed as of Sept. 2, 2022. https://www.eia.gov/state/rankings/?sid=MI#series/47
B61: [2]: 104.009 bcm is the sum of 2021 Natural Gas Production numbers from Alberta, Economic Dashboard, https://economicdashboard.alberta.ca/NaturalGasProduction
B62: [3]: 52.82 bcm is the sum of 2021 Natural Gas Production numbers from British Columbia, Natural Gas and Oil Statistics, https://www2.gov.bc.ca/gov/content/industry/natural-gas-oil/statistics

Sheet Renew Natural Gas Availability
B2: Renewable Natural Gas Production Availability (2022)
B4: State | C4: Total Number of Producers | D4: Production Volume (2021)
D5: Food Waste | E5: Landfills | F5: Livestock | G5: Water Treatment Facility | H5: Total | I5: Food Waste | J5: Landfills | K5: Livestock | L5: Water Treatment Facility | M5: Total
D6: MMBtu/year | E6: Mmbtu/year | F6: MMBtu/year | G6: MMBtu/year | H6: MMBtu/year | I6: MM DGE/year | J6: MM DGE/year | K6: MM DGE/year | L6: MM DGE/year | M6: MM DGE/year
D7: [1]
B8: East Coast (PADD 1)
B9: Georgia | C9: 1 | D9: - | E9: 430006.5 | F9: - | G9: - | H9: =IF(SUM(D9:G9),SUM(D9:G9),"-") -> 430006.5 | I9: =IFERROR((D9/'Fuel Consumption + Conversions'!$E$16),"-") -> - | J9: =IFERROR((E9/'Fuel Consumption + Conversions'!$E$16),"-") -> 3.104964257 | K9: =IFERROR((F9/'Fuel Consumption + Conversions'!$E$16),"-") -> - | L9: =IFERROR((G9/'Fuel Consumption + Conversions'!$E$16),"-") -> - | M9: =IF(SUM(I9:L9),SUM(I9:L9),"-") -> 3.104964257
B10: New York | C10: 12 | D10: - | E10: 1254635 | F10: 448146.4888 | G10: 591300 | H10: =IF(SUM(D10:G10),SUM(D10:G10),"-") -> 2294081.489 | I10: =IFERROR((D10/'Fuel Consumption + Conversions'!$E$16),"-") -> - | J10: =IFERROR((E10/'Fuel Consumption + Conversions'!$E$16),"-") -> 9.05939057 | K10: =IFERROR((F10/'Fuel Consumption + Conversions'!$E$16),"-") -> 3.235948363 | L10: =IFERROR((G10/'Fuel Consumption + Conversions'!$E$16),"-") -> 4.269622355 | M10: =IF(SUM(I10:L10),SUM(I10:L10),"-") -> 16.56496129
B11: North Carolina | C11: 2 | D11: - | E11: - | F11: 220000 | G11: - | H11: =IF(SUM(D11:G11),SUM(D11:G11),"-") -> 220000 | I11: =IFERROR((D11/'Fuel Consumption + Conversions'!$E$16),"-") -> - | J11: =IFERROR((E11/'Fuel Consumption + Conversions'!$E$16),"-") -> - | K11: =IFERROR((F11/'Fuel Consumption + Conversions'!$E$16),"-") -> 1.588562351 | L11: =IFERROR((G11/'Fuel Consumption + Conversions'!$E$16),"-") -> - | M11: =IF(SUM(I11:L11),SUM(I11:L11),"-") -> 1.588562351
B12: Pennsylvania | C12: 9 | D12: - | E12: 4047101.75 | F12: - | G12: - | H12: =IF(SUM(D12:G12),SUM(D12:G12),"-") -> 4047101.75 | I12: =IFERROR((D12/'Fuel Consumption + Conversions'!$E$16),"-") -> - | J12: =IFERROR((E12/'Fuel Consumption + Conversions'!$E$16),"-") -> 29.22306123 | K12: =IFERROR((F12/'Fuel Consumption + Conversions'!$E$16),"-") -> - | L12: =IFERROR((G12/'Fuel Consumption + Conversions'!$E$16),"-") -> - | M12: =IF(SUM(I12:L12),SUM(I12:L12),"-") -> 29.22306123
B13: West Virginia | C13: 1 | D13: - | E13: 145000 | F13: - | G13: - | H13: =IF(SUM(D13:G13),SUM(D13:G13),"-") -> 145000 | I13: =IFERROR((D13/'Fuel Consumption + Conversions'!$E$16),"-") -> - | J13: =IFERROR((E13/'Fuel Consumption + Conversions'!$E$16),"-") -> 1.047007004 | K13: =IFERROR((F13/'Fuel Consumption + Conversions'!$E$16),"-") -> - | L13: =IFERROR((G13/'Fuel Consumption + Conversions'!$E$16),"-") -> - | M13: =IF(SUM(I13:L13),SUM(I13:L13),"-") -> 1.047007004
B14: Midwest (PADD 2) | I14: =IFERROR((D14/'Fuel Consumption + Conversions'!$E$16),"-") -> 0 | J14: =IFERROR((E14/'Fuel Consumption + Conversions'!$E$16),"-") -> 0 | K14: =IFERROR((F14/'Fuel Consumption + Conversions'!$E$16),"-") -> 0 | L14: =IFERROR((G14/'Fuel Consumption + Conversions'!$E$16),"-") -> 0
B15: Illinois | C15: 1 | D15: - | E15: 576000 | F15: - | G15: - | H15: =IF(SUM(D15:G15),SUM(D15:G15),"-") -> 576000 | I15: =IFERROR((D15/'Fuel Consumption + Conversions'!$E$16),"-") -> - | J15: =IFERROR((E15/'Fuel Consumption + Conversions'!$E$16),"-") -> 4.159145065 | K15: =IFERROR((F15/'Fuel Consumption + Conversions'!$E$16),"-") -> - | L15: =IFERROR((G15/'Fuel Consumption + Conversions'!$E$16),"-") -> - | M15: =IF(SUM(I15:L15),SUM(I15:L15),"-") -> 4.159145065
B16: Indiana | C16: 1 | D16: - | E16: 897552 | F16: - | G16: - | H16: 897552 | I16: =IFERROR((D16/'Fuel Consumption + Conversions'!$E$16),"-") -> - | J16: =IFERROR((E16/'Fuel Consumption + Conversions'!$E$16),"-") -> 6.480987797 | K16: =IFERROR((F16/'Fuel Consumption + Conversions'!$E$16),"-") -> - | L16: =IFERROR((G16/'Fuel Consumption + Conversions'!$E$16),"-") -> - | M16: 6.480987797
B17: Kansas | C17: 2 | D17: - | E17: 1540000 | F17: - | G17: - | H17: 1540000 | I17: =IFERROR((D17/'Fuel Consumption + Conversions'!$E$16),"-") -> - | J17: =IFERROR((E17/'Fuel Consumption + Conversions'!$E$16),"-") -> 11.11993646 | K17: =IFERROR((F17/'Fuel Consumption + Conversions'!$E$16),"-") -> - | L17: =IFERROR((G17/'Fuel Consumption + Conversions'!$E$16),"-") -> - | M17: 11.11993646
B18: Kentucky | C18: 2 | D18: - | E18: 1382572.5 | F18: - | G18: - | H18: 1382572.5 | I18: =IFERROR((D18/'Fuel Consumption + Conversions'!$E$16),"-") -> - | J18: =IFERROR((E18/'Fuel Consumption + Conversions'!$E$16),"-") -> 9.983193732 | K18: =IFERROR((F18/'Fuel Consumption + Conversions'!$E$16),"-") -> - | L18: =IFERROR((G18/'Fuel Consumption + Conversions'!$E$16),"-") -> - | M18: 9.983193732
B19: Michigan | C19: 6 | D19: - | E19: 2442478.685 | F19: - | G19: 141912 | H19: 2584390.685 | I19: =IFERROR((D19/'Fuel Consumption + Conversions'!$E$16),"-") -> - | J19: =IFERROR((E19/'Fuel Consumption + Conversions'!$E$16),"-") -> 17.63649855 | K19: =IFERROR((F19/'Fuel Consumption + Conversions'!$E$16),"-") -> - | L19: =IFERROR((G19/'Fuel Consumption + Conversions'!$E$16),"-") -> 1.024709365 | M19: 18.66120792
B20: Minnesota | C20: 1 | D20: - | E20: - | F20: 430000 | G20: - | H20: 430000 | I20: =IFERROR((D20/'Fuel Consumption + Conversions'!$E$16),"-") -> - | J20: =IFERROR((E20/'Fuel Consumption + Conversions'!$E$16),"-") -> - | K20: =IFERROR((F20/'Fuel Consumption + Conversions'!$E$16),"-") -> 3.104917323 | L20: =IFERROR((G20/'Fuel Consumption + Conversions'!$E$16),"-") -> - | M20: 3.104917323
B21: Missouri | C21: 4 | D21: - | E21: - | F21: 195000 | G21: - | H21: 195000 | I21: =IFERROR((D21/'Fuel Consumption + Conversions'!$E$16),"-") -> - | J21: =IFERROR((E21/'Fuel Consumption + Conversions'!$E$16),"-") -> - | K21: =IFERROR((F21/'Fuel Consumption + Conversions'!$E$16),"-") -> 1.408043902 | L21: =IFERROR((G21/'Fuel Consumption + Conversions'!$E$16),"-") -> - | M21: 1.408043902
B22: Nebraska | C22: 6 | D22: 190000 | E22: 542577 | F22: - | G22: 174990.258 | H22: 907567.258 | I22: =IFERROR((D22/'Fuel Consumption + Conversions'!$E$16),"-") -> 1.371940212 | J22: =IFERROR((E22/'Fuel Consumption + Conversions'!$E$16),"-") -> 3.91780634 | K22: =IFERROR((F22/'Fuel Consumption + Conversions'!$E$16),"-") -> - | L22: =IFERROR((G22/'Fuel Consumption + Conversions'!$E$16),"-") -> 1.263558798 | M22: 6.553305351
B23: Ohio | C23: 9 | D23: 213762.916 | E23: 6215511.1 | F23: - | G23: - | H23: 6429274.016 | I23: =IFERROR((D23/'Fuel Consumption + Conversions'!$E$16),"-") -> 1.543526002 | J23: =IFERROR((E23/'Fuel Consumption + Conversions'!$E$16),"-") -> 44.88057694 | K23: =IFERROR((F23/'Fuel Consumption + Conversions'!$E$16),"-") -> - | L23: =IFERROR((G23/'Fuel Consumption + Conversions'!$E$16),"-") -> - | M23: 46.42410294
B24: Oklahoma | C24: 5 | D24: 219000 | E24: 2108766.33 | F24: - | G24: - | H24: 2327766.33 | I24: =IFERROR((D24/'Fuel Consumption + Conversions'!$E$16),"-") -> 1.581341613 | J24: =IFERROR((E24/'Fuel Consumption + Conversions'!$E$16),"-") -> 15.22684909 | K24: =IFERROR((F24/'Fuel Consumption + Conversions'!$E$16),"-") -> - | L24: =IFERROR((G24/'Fuel Consumption + Conversions'!$E$16),"-") -> - | M24: 16.8081907
B25: Tennessee | C25: 4 | D25: - | E25: 2021314.15 | F25: - | G25: - | H25: 2021314.15 | I25: =IFERROR((D25/'Fuel Consumption + Conversions'!$E$16),"-") -> - | J25: =IFERROR((E25/'Fuel Consumption + Conversions'!$E$16),"-") -> 14.59537981 | K25: =IFERROR((F25/'Fuel Consumption + Conversions'!$E$16),"-") -> - | L25: =IFERROR((G25/'Fuel Consumption + Conversions'!$E$16),"-") -> - | M25: 14.59537981
B26: Wisconsin | C26: 16 | D26: 1332249 | E26: 632707.425 | F26: 1920391.4 | G26: 264.441258 | H26: 3885612.266 | I26: =IFERROR((D26/'Fuel Consumption + Conversions'!$E$16),"-") -> 9.619820926 | J26: =IFERROR((E26/'Fuel Consumption + Conversions'!$E$16),"-") -> 4.568614521 | K26: =IFERROR((F26/'Fuel Consumption + Conversions'!$E$16),"-") -> 13.86664308 | L26: =IFERROR((G26/'Fuel Consumption + Conversions'!$E$16),"-") -> 0.00190946103 | M26: 28.05698799
B27: Gulf Coast (PADD 3) | I27: =IFERROR((D27/'Fuel Consumption + Conversions'!$E$16),"-") -> 0 | J27: =IFERROR((E27/'Fuel Consumption + Conversions'!$E$16),"-") -> 0 | K27: =IFERROR((F27/'Fuel Consumption + Conversions'!$E$16),"-") -> 0 | L27: =IFERROR((G27/'Fuel Consumption + Conversions'!$E$16),"-") -> 0
B28: Arkansas | C28: 1 | D28: - | E28: 534600 | F28: - | G28: - | H28: =IF(SUM(D28:G28),SUM(D28:G28),"-") -> 534600 | I28: =IFERROR((D28/'Fuel Consumption + Conversions'!$E$16),"-") -> - | J28: =IFERROR((E28/'Fuel Consumption + Conversions'!$E$16),"-") -> 3.860206513 | K28: =IFERROR((F28/'Fuel Consumption + Conversions'!$E$16),"-") -> - | L28: =IFERROR((G28/'Fuel Consumption + Conversions'!$E$16),"-") -> - | M28: =IF(SUM(I28:L28),SUM(I28:L28),"-") -> 3.860206513
B29: Louisiana | C29: 5 | D29: - | E29: 3514659 | F29: - | G29: - | H29: =IF(SUM(D29:G29),SUM(D29:G29),"-") -> 3514659 | I29: =IFERROR((D29/'Fuel Consumption + Conversions'!$E$16),"-") -> - | J29: =IFERROR((E29/'Fuel Consumption + Conversions'!$E$16),"-") -> 25.37843166 | K29: =IFERROR((F29/'Fuel Consumption + Conversions'!$E$16),"-") -> - | L29: =IFERROR((G29/'Fuel Consumption + Conversions'!$E$16),"-") -> - | M29: =IF(SUM(I29:L29),SUM(I29:L29),"-") -> 25.37843166
B30: Mississippi | C30: 1 | D30: - | E30: 497355 | F30: - | G30: - | H30: =IF(SUM(D30:G30),SUM(D30:G30),"-") -> 497355 | I30: =IFERROR((D30/'Fuel Consumption + Conversions'!$E$16),"-") -> - | J30: =IFERROR((E30/'Fuel Consumption + Conversions'!$E$16),"-") -> 3.591270128 | K30: =IFERROR((F30/'Fuel Consumption + Conversions'!$E$16),"-") -> - | L30: =IFERROR((G30/'Fuel Consumption + Conversions'!$E$16),"-") -> - | M30: =IF(SUM(I30:L30),SUM(I30:L30),"-") -> 3.591270128
B31: New Mexico | C31: 1 | D31: - | E31: - | F31: 18067.5 | G31: - | H31: =IF(SUM(D31:G31),SUM(D31:G31),"-") -> 18067.5 | I31: =IFERROR((D31/'Fuel Consumption + Conversions'!$E$16),"-") -> - | J31: =IFERROR((E31/'Fuel Consumption + Conversions'!$E$16),"-") -> - | K31: =IFERROR((F31/'Fuel Consumption + Conversions'!$E$16),"-") -> 0.1304606831 | L31: =IFERROR((G31/'Fuel Consumption + Conversions'!$E$16),"-") -> - | M31: =IF(SUM(I31:L31),SUM(I31:L31),"-") -> 0.1304606831
B32: Texas | C32: 21 | D32: - | E32: 19687812.18 | F32: 478145 | G32: 260829 | H32: =IF(SUM(D32:G32),SUM(D32:G32),"-") -> 20426786.18 | I32: =IFERROR((D32/'Fuel Consumption + Conversions'!$E$16),"-") -> - | J32: =IFERROR((E32/'Fuel Consumption + Conversions'!$E$16),"-") -> 142.1605327 | K32: =IFERROR((F32/'Fuel Consumption + Conversions'!$E$16),"-") -> 3.452559752 | L32: =IFERROR((G32/'Fuel Consumption + Conversions'!$E$16),"-") -> 1.883377861 | M32: =IF(SUM(I32:L32),SUM(I32:L32),"-") -> 147.4964703
B33: Rocky Mountains (PADD 4) | I33: =IFERROR((D33/'Fuel Consumption + Conversions'!$E$16),"-") -> 0 | J33: =IFERROR((E33/'Fuel Consumption + Conversions'!$E$16),"-") -> 0 | K33: =IFERROR((F33/'Fuel Consumption + Conversions'!$E$16),"-") -> 0 | L33: =IFERROR((G33/'Fuel Consumption + Conversions'!$E$16),"-") -> 0
B34: Idaho | C34: 3 | D34: - | E34: - | F34: 576545 | G34: - | H34: =IF(SUM(D34:G34),SUM(D34:G34),"-") -> 576545 | I34: =IFERROR((D34/'Fuel Consumption + Conversions'!$E$16),"-") -> - | J34: =IFERROR((E34/'Fuel Consumption + Conversions'!$E$16),"-") -> - | K34: =IFERROR((F34/'Fuel Consumption + Conversions'!$E$16),"-") -> 4.163080367 | L34: =IFERROR((G34/'Fuel Consumption + Conversions'!$E$16),"-") -> - | M34: =IF(SUM(I34:L34),SUM(I34:L34),"-") -> 4.163080367
B35: Montana | C35: 1 | D35: - | E35: 161704.125 | F35: - | G35: - | H35: =IF(SUM(D35:G35),SUM(D35:G35),"-") -> 161704.125 | I35: =IFERROR((D35/'Fuel Consumption + Conversions'!$E$16),"-") -> - | J35: =IFERROR((E35/'Fuel Consumption + Conversions'!$E$16),"-") -> 1.167623114 | K35: =IFERROR((F35/'Fuel Consumption + Conversions'!$E$16),"-") -> - | L35: =IFERROR((G35/'Fuel Consumption + Conversions'!$E$16),"-") -> - | M35: =IF(SUM(I35:L35),SUM(I35:L35),"-") -> 1.167623114
B36: Utah | C36: 2 | D36: 985500 | E36: - | F36: 236000 | G36: - | H36: =IF(SUM(D36:G36),SUM(D36:G36),"-") -> 1221500 | I36: =IFERROR((D36/'Fuel Consumption + Conversions'!$E$16),"-") -> 7.116037259 | J36: =IFERROR((E36/'Fuel Consumption + Conversions'!$E$16),"-") -> - | K36: =IFERROR((F36/'Fuel Consumption + Conversions'!$E$16),"-") -> 1.704094158 | L36: =IFERROR((G36/'Fuel Consumption + Conversions'!$E$16),"-") -> - | M36: =IF(SUM(I36:L36),SUM(I36:L36),"-") -> 8.820131417
B37: West Coast (PADD 5) | I37: =IFERROR((D37/'Fuel Consumption + Conversions'!$E$16),"-") -> 0 | J37: =IFERROR((E37/'Fuel Consumption + Conversions'!$E$16),"-") -> 0 | K37: =IFERROR((F37/'Fuel Consumption + Conversions'!$E$16),"-") -> 0 | L37: =IFERROR((G37/'Fuel Consumption + Conversions'!$E$16),"-") -> 0
B38: Arizona | C38: 4 | D38: - | E38: - | F38: 1362110.4 | G38: 752424 | H38: =IF(SUM(D38:G38),SUM(D38:G38),"-") -> 2114534.4 | I38: =IFERROR((D38/'Fuel Consumption + Conversions'!$E$16),"-") -> - | J38: =IFERROR((E38/'Fuel Consumption + Conversions'!$E$16),"-") -> - | K38: =IFERROR((F38/'Fuel Consumption + Conversions'!$E$16),"-") -> 9.83544227 | L38: =IFERROR((G38/'Fuel Consumption + Conversions'!$E$16),"-") -> 5.433056538 | M38: =IF(SUM(I38:L38),SUM(I38:L38),"-") -> 15.26849881
B39: California | C39: 72 | D39: 927641.43 | E39: 200715.066 | F39: 3724829.058 | G39: 559184.771 | H39: =IF(SUM(D39:G39),SUM(D39:G39),"-") -> 5412370.325 | I39: =IFERROR((D39/'Fuel Consumption + Conversions'!$E$16),"-") -> 6.698255686 | J39: =IFERROR((E39/'Fuel Consumption + Conversions'!$E$16),"-") -> 1.449310896 | K39: =IFERROR((F39/'Fuel Consumption + Conversions'!$E$16),"-") -> 26.89601457 | L39: =IFERROR((G39/'Fuel Consumption + Conversions'!$E$16),"-") -> 4.037726702 | M39: =IF(SUM(I39:L39),SUM(I39:L39),"-") -> 39.08130786
B40: Oregon | C40: 3 | D40: - | E40: - | F40: 1587472 | G40: 100000 | H40: =IF(SUM(D40:G40),SUM(D40:G40),"-") -> 1687472 | I40: =IFERROR((D40/'Fuel Consumption + Conversions'!$E$16),"-") -> - | J40: =IFERROR((E40/'Fuel Consumption + Conversions'!$E$16),"-") -> - | K40: =IFERROR((F40/'Fuel Consumption + Conversions'!$E$16),"-") -> 11.46271933 | L40: =IFERROR((G40/'Fuel Consumption + Conversions'!$E$16),"-") -> 0.7220737959 | M40: =IF(SUM(I40:L40),SUM(I40:L40),"-") -> 12.18479313
B41: Washington | C41: 6 | D41: 4237.65 | E41: 3458831 | F41: 160000 | G41: 332304 | H41: =IF(SUM(D41:G41),SUM(D41:G41),"-") -> 3955372.65 | I41: =IFERROR((D41/'Fuel Consumption + Conversions'!$E$16),"-") -> 0.03059896021 | J41: =IFERROR((E41/'Fuel Consumption + Conversions'!$E$16),"-") -> 24.9753123 | K41: =IFERROR((F41/'Fuel Consumption + Conversions'!$E$16),"-") -> 1.155318074 | L41: =IFERROR((G41/'Fuel Consumption + Conversions'!$E$16),"-") -> 2.399480107 | M41: =IF(SUM(I41:L41),SUM(I41:L41),"-") -> 28.56070944
B42: PADD 1 | C42: =SUM(C9:C13) -> 25 | D42: =SUM(D9:D13) -> 0 | E42: 5876743.25 | F42: 668146.4888 | G42: 591300 | H42: 7136189.739 | I42: 0 | J42: 42.43442306 | K42: 4.824510714 | L42: 4.269622355 | M42: 51.52855613
B43: PADD 2 | C43: =SUM(C15:C26) -> 57 | D43: =SUM(D15:D26) -> 1955011.916 | E43: 18359479.19 | F43: 2545391.4 | G43: 317166.6993 | H43: 23177049.21 | I43: 14.11662875 | J43: 132.5689883 | K43: 18.3796043 | L43: 2.290177625 | M43: 167.355399
B44: PADD 3 | C44: =SUM(C28:C32) -> 29 | D44: =SUM(D28:D32) -> 0 | E44: 24234426.18 | F44: 496212.5 | G44: 260829 | H44: 24991467.68 | I44: 0 | J44: 174.990441 | K44: 3.583020435 | L44: 1.883377861 | M44: 180.4568393
B45: PADD 4 | C45: =SUM(C34:C36) -> 6 | D45: =SUM(D34:D36) -> 985500 | E45: 161704.125 | F45: 812545 | G45: 0 | H45: 1959749.125 | I45: 7.116037259 | J45: 1.167623114 | K45: 5.867174525 | L45: 0 | M45: =SUM(M34:M36) -> 14.1508349
B46: PADD 5 | C46: =SUM(C38:C41) -> 85 | D46: =SUM(D38:D41) -> 931879.08 | E46: 3659546.066 | F46: 6834411.458 | G46: 1743912.771 | H46: 13169749.38 | I46: 6.728854647 | J46: 26.42462319 | K46: 49.34949425 | L46: 12.59233714 | M46: =SUM(M38:M41) -> 95.09530923
B47: US Total | C47: =SUM(C42:C46) -> 202 | D47: 3872390.996 | E47: 52291898.81 | F47: 11356706.85 | G47: 2913208.47 | H47: 70434205.12 | I47: 27.96152066 | J47: 377.5860987 | K47: 82.00380423 | L47: 21.03551498 | M47: 508.5869385
B49: Sources and Notes:
B50: Conversions: Alternative Fuels Data Center, https://afdc.energy.gov/fuels/properties
B51: [1]: Summation by state of the facilities' capacities listed in the Energy Vision Renewable Natural Gas Project Database, https://energy-vision.org/rng-project-database/. This represents a conservative estimate, as there are facilities listed without publicly available capacities.

Sheet Propane Consumption Forecast
B2: Propane Consumption Forecast
B4: Fuel Type | C4: Unit | D4: Citation Reference | E4: 2021 | F4: 2022 | G4: 2023 | H4: 2024
B5: Propane | C5: MM Gallons | D5: [1] | E5: ='Propane EIA Data'!F$5*'Propane EIA Data'!$F$9 -> 1.973644231 | F5: ='Propane EIA Data'!G$5*'Propane EIA Data'!$F$9 -> 2.298312978 | G5: ='Propane EIA Data'!H$5*'Propane EIA Data'!$F$9 -> 2.481152747 | H5: ='Propane EIA Data'!I$5*'Propane EIA Data'!$F$9 -> 2.547795279
B7: Sources and Notes:
B8: [1]: 'Propane Consumption Forecast.' Using Washington's historical consumption BRG has allocated the projected propane consumption using the U.S. EIA AEO Pacific Consumption Forecast. Due to an identified data limitation BRG relied upon the average allocation to Washington from 2014 through 2019.

Sheet Propane Availability
B2: Propane Production Availability (2022)
B4: Conversion | C4: Barrels to Gallons | D4: 42
B6: PADD | C6: Production Volume
C7: Natural Gas Field Plant Production | D7: Refinery Production | E7: Total
C8: Thousand barrels/year | D8: Thousand barrels/year | E8: MM gal/year
C9: [1] | D9: [2]
B10: East Coast (PADD 1)
B11: East Coast | C11: 47 | D11: 4667 | E11: =(SUM(C11:D11)*$D$4)/1000 -> 197.988
B12: Appalachia | C12: 82504 | D12: 294 | E12: 3477.516
B13: Midwest (PADD 2)
B14: IN, IL, and KY | C14: 24124 | D14: 17488 | E14: 1747.704
B15: MN, WI, ND, SD | C15: 50862 | D15: 3328 | E15: =(SUM(C15:D15)*$D$4)/1000 -> 2275.98
B16: OK, KS, MO | C16: 58178 | D16: 5429 | E16: 2671.494
B17: Gulf Coast (PADD 3)
B18: TX Inland | C18: 277527 | D18: 3231 | E18: 11791.836
B19: TX Gulf Coast | C19: 14152 | D19: 27825 | E19: 1763.034
B20: LA Gulf Coast | C20: 20583 | D20: 24032 | E20: =(SUM(C20:D20)*$D$4)/1000 -> 1873.83
B21: N. LA, AK | C21: 1708 | D21: 142 | E21: 77.7
B22: NM | C22: 36093 | D22: 358 | E22: 1530.942
B23: Rocky Mountains (PADD 4) | C23: 67943 | D23: 2839 | E23: 2972.844
B24: West Coast (PADD 5) | C24: 2993 | D24: 11692 | E24: 616.77
B25: PADD 1 | C25: =SUM(C11:C12) -> 82551 | D25: =SUM(D11:D12) -> 4961 | E25: =SUM(E11:E12) -> 3675.504
B26: PADD 2 | C26: =SUM(C14:C16) -> 133164 | D26: =SUM(D14:D16) -> 26245 | E26: =SUM(E14:E16) -> 6695.178
B27: PADD 3 | C27: =SUM(C18:C22) -> 350063 | D27: =SUM(D18:D22) -> 55588 | E27: =SUM(E18:E22) -> 17037.342
B28: PADD 4 | C28: =C23 -> 67943 | D28: =D23 -> 2839 | E28: 2972.844
B29: PADD 5 | C29: =C24 -> 2993 | D29: 11692 | E29: 616.77
B30: US | C30: =SUM(C10:C24) -> 636714 | D30: =SUM(D10:D24) -> 101325 | E30: =SUM(E10:E24) -> 30997.638
B32: Sources and Notes
B33: Conversions: U.S. Energy Information Administration, FAQ, https://www.eia.gov/energyexplained/units-and-calculators/
B34: [1]: U.S. Energy Information Administration, Natural Gas Plant Field Production, accessed as of Sept. 2, 2022. https://www.eia.gov/dnav/pet/pet_pnp_gp_a_EPLLPA_FPF_mbbl_a.htm
B35: [2]: U.S. Energy Information Administration, Refinery Net Production, accessed as of Sept. 2, 2022. https://www.eia.gov/dnav/pet/pet_pnp_refp2_a_EPLLPA_YPY_mbbl_a.htm

Sheet Data Sources-->

Sheet Gas & Diesel Forecast Data
C2: Transportation Revenue Forecast Council Table A. 1. Washington Motor Fuel Consumption Fiscal Year Forecast June 2022
L3: Current Biennia
D4: 2014 | E4: 2015 | F4: 2016 | G4: 2017 | H4: 2018 | I4: 2019 | J4: 2020 | K4: 2021 | L4: 2022 | M4: 2023 | N4: 2024 | O4: 2025 | P4: 2026 | Q4: 2027 | R4: 2028 | S4: 2029 | T4: 2030 | U4: 2031
C5: Million Gallons
C6: Gasoline (June 2022 Forecast) | D6: 2716 | E6: 2757 | F6: 2844 | G6: 2887 | H6: 2966 | I6: 2905 | J6: 2734 | K6: 2494 | L6: 2659 | M6: 2719 | N6: 2762 | O6: 2795 | P6: 2815 | Q6: 2834 | R6: 2853 | S6: 2871 | T6: 2890 | U6: 2909
C7: Annual Percentage Change | D7: 0.015 | E7: 0.015 | F7: 0.031 | G7: 0.015 | H7: 0.028 | I7: -0.021 | J7: -0.059 | K7: -0.088 | L7: 0.066 | M7: 0.023 | N7: 0.016 | O7: 0.012 | P7: 0.007 | Q7: 0.007 | R7: 0.007 | S7: 0.006 | T7: 0.007 | U7: 0.006
C8: Gasoline (Feb. 2022 Forecast) | D8: 2716 | E8: 2757 | F8: 2844 | G8: 2887 | H8: 2966 | I8: 2905 | J8: 2734 | K8: 2494 | L8: 2659 | M8: 2719 | N8: 2762 | O8: 2795 | P8: 2815 | Q8: 2834 | R8: 2853 | S8: 2871 | T8: 2890 | U8: 2909
C9: Percentage Change, June 2022 vs Feb. 2022 | D9: 0 | E9: 0 | F9: 0 | G9: 0 | H9: 0 | I9: 0 | J9: 0 | K9: 0 | L9: 0 | M9: 0 | N9: 0 | O9: 0 | P9: 0 | Q9: 0 | R9: 0 | S9: 0 | T9: 0 | U9: 0
C10: Diesel (June 2022 Forecast) | D10: 656 | E10: 663 | F10: 676.2 | G10: 675 | H10: 678 | I10: 689 | J10: 710 | K10: 726 | L10: 777 | M10: 782 | N10: 791 | O10: 803 | P10: 816 | Q10: 829 | R10: 841 | S10: 854 | T10: 860 | U10: 866
C11: Annual Percentage Change | D11: 0.03 | E11: 0.01 | F11: 0.02 | G11: -0.002 | H11: 0.005 | I11: 0.015 | J11: 0.031 | K11: 0.022 | L11: 0.07 | M11: 0.007 | N11: 0.011 | O11: 0.016 | P11: 0.016 | Q11: 0.016 | R11: 0.015 | S11: 0.015 | T11: 0.007 | U11: 0.007
C12: Diesel (Feb. 2022 Forecast) | D12: 656 | E12: 663 | F12: 676.2 | G12: 675 | H12: 678 | I12: 689 | J12: 710 | K12: 726 | L12: 754 | M12: 772 | N12: 783 | O12: 793 | P12: 803 | Q12: 813 | R12: 823 | S12: 832 | T12: 842 | U12: 852
C13: Percentage Change, June 2022 vs Feb. 2022 | D13: 0 | E13: 0 | F13: 0 | G13: 0 | H13: 0 | I13: 0 | J13: 0 | K13: 0 | L13: 0.03 | M13: 0.014 | N13: 0.01 | O13: 0.013 | P13: 0.016 | Q13: 0.019 | R13: 0.022 | S13: 0.026 | T13: 0.021 | U13: 0.016
C14: Total Motor Fuel (June 2022 Forecast) | D14: 3373 | E14: 3420 | F14: 3520 | G14: 3562 | H14: 3645 | I14: 3593 | J14: 3444 | K14: 3220 | L14: 3435 | M14: 3501 | N14: 3552 | O14: 3599 | P14: 3631 | Q14: 3662 | R14: 3694 | S14: 3725 | T14: 3750 | U14: 3774
C15: Annual Percentage Change | D15: 0.018 | E15: 0.014 | F15: 0.029 | G15: 0.012 | H15: 0.023 | I15: -0.014 | J15: -0.042 | K15: -0.065 | L15: 0.067 | M15: 0.019 | N15: 0.015 | O15: 0.013 | P15: 0.009 | Q15: 0.009 | R15: 0.009 | S15: 0.008 | T15: 0.007 | U15: 0.006
C16: Total Motor Fuel (Feb. 2022 Forecast) | D16: 3373 | E16: 3420 | F16: 3520 | G16: 3562 | H16: 3645 | I16: 3593 | J16: 3444 | K16: 3220 | L16: 3413 | M16: 3491 | N16: 3545 | O16: 3588 | P16: 3618 | Q16: 3647 | R16: 3676 | S16: 3703 | T16: 3732 | U16: 3761
C17: Percentage Change, June 2022 vs Feb. 2022 | D17: 0 | E17: 0 | F17: 0 | G17: 0 | H17: 0 | I17: 0 | J17: 0 | K17: 0 | L17: 0.007 | M17: 0.003 | N17: 0.002 | O17: 0.003 | P17: 0.004 | Q17: 0.004 | R17: 0.005 | S17: 0.006 | T17: 0.005 | U17: 0.004
C21: Source:
C22: Washington Office of Financial Management, June 2022 Transportation Revenue Forecasts, https://ofm.wa.gov/budget/budget-related-information/transportation-revenue-information

Sheet Vehicle Stock Forecast
B2: Washington Vehicle Stock Forecast
D3: 2014 | E3: 2015 | F3: 2016 | G3: 2017 | H3: 2018 | I3: 2019 | J3: 2020 | K3: 2021 | L3: 2022 | M3: 2023 | N3: 2024 | O3: 2025 | P3: 2026 | Q3: 2027 | R3: 2028 | S3: 2029 | T3: 2030 | U3: 2031
B4: Vehicles paying Basic License Fee ($30)
C5: Passenger Car and Cabs | D5: 4529669 | E5: 4707553 | F5: 4908456 | G5: 5060804 | H5: 5187649 | I5: 5204763 | J5: 5102400 | K5: 5519519 | L5: 5400000 | M5: 5433159 | N5: 5548000 | O5: 5662873 | P5: 5777753 | Q5: 5891612 | R5: 5968428 | S5: 6044049 | T5: 6120658 | U5: 6196997
C6: Motorhomes | D6: 65975 | E6: 66913 | F6: 68720 | G6: 69000 | H6: 68917 | I6: 67618 | J6: 64100 | K6: 74078 | L6: 71000 | M6: 71160 | N6: 71320 | O6: 71486 | P6: 71651 | Q6: 71812 | R6: 71970 | S6: 72124 | T6: 72278 | U6: 72430
C7: Travel Trailers | D7: 126313 | E7: 132569 | F7: 142484 | G7: 149700 | H7: 159651 | I7: 162387 | J7: 160400 | K7: 194295 | L7: 190000 | M7: 190222 | N7: 190999 | O7: 192917 | P7: 194895 | Q7: 196852 | R7: 198869 | S7: 200866 | T7: 202923 | U7: 204960
C8: Motorcycles | D8: 229822 | E8: 236384 | F8: 236134 | G8: 231400 | H8: 235531 | I8: 232369 | J8: 221400 | K8: 245409 | L8: 225000 | M8: 226125 | N8: 227256 | O8: 228392 | P8: 229534 | Q8: 230682 | R8: 231835 | S8: 232994 | T8: 234159 | U8: 235330
C9: Other Trailers | D9: 107205 | E9: 102538 | F9: 115059 | G9: 129900 | H9: 120791 | I9: 122369 | J9: 128000 | K9: 137650 | L9: 150000 | M9: 150175 | N9: 150244 | O9: 150991 | P9: 151763 | Q9: 152518 | R9: 153297 | S9: 154059 | T9: 154846 | U9: 155617
C10: Tow Trucks | D10: 1390 | E10: 1351 | F10: 1389 | G10: 1400 | H10: 1359 | I10: 1330 | J10: 1300 | K10: 1385 | L10: 1400 | M10: 1393 | N10: 1386 | O10: 1379 | P10: 1372 | Q10: 1365 | R10: 1359 | S10: 1352 | T10: 1345 | U10: 1338
D11: 5060374 | E11: 5247308 | F11: 5472242 | G11: 5642204 | H11: 5773898 | I11: 5790836 | J11: 5677600 | K11: 6172336 | L11: 6037400 | M11: 6072234 | N11: 6189204 | O11: 6308038 | P11: 6426968 | Q11: 6544841 | R11: 6625757 | S11: 6705444 | T11: 6786210 | U11: 6866673
B12: Vehicles paying Weight-based Registration Fee (Trucks)
C13: Trucks | D13: 1459229 | E13: 1489331 | F13: 1539232 | G13: 1578707 | H13: 1599439 | I13: 1605565 | J13: 1605500 | K13: 1753701 | L13: 1733000 | M13: 1784145 | N13: 1828749 | O13: 1865324 | P13: 1893303 | Q13: 1911925 | R13: 1931657 | S13: 1948349 | T13: 1964983 | U13: 1981700
C14: For Hire, Buses, Stages | D14: 3225 | E14: 3591 | F14: 3760 | G14: 4100 | H14: 4434 | I14: 4148 | J14: 3500 | K14: 3484 | L14: 3800 | M14: 4249 | N14: 4673 | O14: 5047 | P14: 5350 | Q14: 5561 | R14: 5790 | S14: 5990 | T14: 6195 | U14: 6406
C15: Comb. Lic. Fee Trailers | D15: 67337 | E15: 70728 | F15: 76964 | G15: 84300 | H15: 94277 | I15: 97838 | J15: 95000 | K15: 106411 | L15: 110000 | M15: 114328 | N15: 118139 | O15: 121290 | P15: 123716 | Q15: 125338 | R15: 127063 | S15: 128527 | T15: 129990 | U15: 131464
C16: Prorate Motor Vehicles | D16: 27662 | E16: 28233 | F16: 29179 | G16: 28600 | H16: 30801 | I16: 25347 | J16: 25300 | K16: 25659 | L16: 29000 | M16: 29856 | N16: 30602 | O16: 31214 | P16: 31683 | Q16: 31994 | R16: 32324 | S16: 32604 | T16: 32882 | U16: 33162
D17: 1557453 | E17: 1591883 | F17: 1649135 | G17: 1695707 | H17: 1728951 | I17: 1732898 | J17: 1729300 | K17: 1889255 | L17: 1875800 | M17: 1932578 | N17: 1982164 | O17: 2022875 | P17: 2054052 | Q17: 2074818 | R17: 2096834 | S17: 2115469 | T17: 2134050 | U17: 2152732
B18: Vehicles paying varying fees
C19: Restored and Antiques | D19: 9631 | E19: 10771 | F19: 10769 | G19: 20700 | H19: 29089 | I19: 26524 | J19: 25700 | K19: 32776 | L19: 34000 | M19: 34170 | N19: 34341 | O19: 34513 | P19: 34685 | Q19: 34859 | R19: 35033 | S19: 35208 | T19: 35384 | U19: 35561
C20: Campers | D20: 24177 | E20: 23513 | F20: 23358 | G20: 22600 | H20: 22118 | I20: 20783 | J20: 19100 | K20: 21293 | L20: 19200 | M20: 18816 | N20: 18440 | O20: 18071 | P20: 17709 | Q20: 17355 | R20: 17008 | S20: 16668 | T20: 16335 | U20: 16008
C21: Mopeds | D21: 9040 | E21: 8978 | F21: 8671 | G21: 7800 | H21: 7391 | I21: 6818 | J21: 6200 | K21: 6637 | L21: 5850 | M21: 5792 | N21: 5734 | O21: 5676 | P21: 5619 | Q21: 5563 | R21: 5508 | S21: 5453 | T21: 5398 | U21: 5344
C22: Exempt | D22: 6404 | E22: 8258 | F22: 8542 | G22: 9000 | H22: 8334 | I22: 9104 | J22: 7700 | K22: 7040 | L22: 7200 | M22: 7500 | N22: 7500 | O22: 7500 | P22: 7500 | Q22: 7500 | R22: 7500 | S22: 7500 | T22: 7500 | U22: 7500
D23: 49252 | E23: 51520 | F23: 51340 | G23: 60100 | H23: 66932 | I23: 63200 | J23: 58700 | K23: 67746 | L23: 66250 | M23: 66278 | N23: 66014 | O23: 65760 | P23: 65514 | Q23: 65277 | R23: 65049 | S23: 64829 | T23: 64617 | U23: 64413
B25: Personal Trailers | D25: 440741 | E25: 454511 | F25: 449369 | G25: 439300 | H25: 458925 | I25: 449177 | J25: 432400 | K25: 490483 | L25: 432000 | M25: 435055 | N25: 438125 | O25: 442355 | P25: 453880 | Q25: 465631 | R25: 477778 | S25: 490118 | T25: 502878 | U25: 515836
B26: Intermittent-Use Trailers | D26: - | E26: - | F26: - | G26: 100 | H26: 575 | I26: 1788 | J26: 2300 | K26: 2943 | L26: 3600 | M26: 4200 | N26: 4890 | O26: 5680 | P26: 6470 | Q26: 7110 | R26: 7700 | S26: 8130 | T26: 8410 | U26: 8550
B28: Total Highway Vehicles | D28: 6667081 | E28: 6890713 | F28: 7622088 | G28: 7837500 | H28: 8029283 | I28: 8037930 | J28: 7900400 | K28: 8812236 | L28: 8415050 | M28: 8510345 | N28: 8680396 | O28: 8844707 | P28: 9006884 | Q28: 9157678 | R28: 9273118 | S28: 9383990 | T28: 9496164 | U28: 9608204
B30: Off Road Vehicles | D30: 82244 | E30: 83606 | F30: 84783 | G30: 91400 | H30: 97909 | I30: 95935 | J30: 102300 | K30: 115900 | L30: 114100 | M30: 115660 | N30: 115420 | O30: 115420 | P30: 115420 | Q30: 115420 | R30: 115420 | S30: 115420 | T30: 115420 | U30: 115420
C31: Wheeled All Tertain Vehicles | D31: 906 | E31: 3875 | F31: 21327 | G31: 37400 | H31: 51048 | I31: 49647 | J31: 55400 | K31: 66430 | L31: 68800 | M31: 70490 | N31: 70750 | O31: 70750 | P31: 70750 | Q31: 70750 | R31: 70750 | S31: 70750 | T31: 70750 | U31: 70750
B33: Snowmobiles | D33: 24688 | E33: 20201 | F33: 25148 | G33: 25200 | H33: 23268 | I33: 22753 | J33: 22500 | K33: 25100 | L33: 23190 | M33: 23420 | N33: 23420 | O33: 23490 | P33: 23490 | Q33: 23490 | R33: 23490 | S33: 23490 | T33: 23490 | U33: 23490
C34: Vintage Snowmobiles | D34: 286 | E34: 266 | F34: 373 | G34: 300 | H34: 219 | I34: 220 | J34: 200 | K34: 220 | L34: 211 | M34: 200 | N34: 210 | O34: 210 | P34: 210 | Q34: 210 | R34: 210 | S34: 210 | T34: 210 | U34: 210
C35: Regular Snowmobiles | D35: 24402 | E35: 19935 | F35: 24775 | G35: 24900 | H35: 23049 | I35: 22533 | J35: 22400 | K35: 24880 | L35: 22979 | M35: 23220 | N35: 23210 | O35: 23280 | P35: 23280 | Q35: 23280 | R35: 23280 | S35: 23280 | T35: 23280 | U35: 23280
B36: Total Registrations | D36: 6774013 | E36: 6994520 | F36: 7732019 | G36: 7954100 | H36: 8150460 | I36: 8156618 | J36: 8025300 | K36: 8953000 | L36: 8552340 | M36: 8649425 | N36: 8819236 | O36: 8983617 | P36: 9145794 | Q36: 9296588 | R36: 9412028 | S36: 9522900 | T36: 9635074 | U36: 9747114
B38: Vehicles subject to additional renewal fees
C39: BEV ( Battery Electric Vehicles) | D39: 4976 | E39: 8047 | F39: 11737 | G39: 14500 | H39: 20867 | I39: 22700 | J39: 30500 | K39: 43000 | L39: 54471 | M39: 72648 | N39: 92434 | O39: 114623 | P39: 138103 | Q39: 161456 | R39: 184549 | S39: 207273 | T39: 229872 | U39: 252866
C40: PHEV (Plug-in Hybrid Vehciles) | D40: 1055 | E40: 1647 | F40: 2130 | G40: 2300 | H40: 3051 | I40: 5000 | J40: 6500 | K40: 8000 | L40: 8924 | M40: 10363 | N40: 11755 | O40: 13063 | P40: 14341 | Q40: 15550 | R40: 16684 | S40: 17744 | T40: 18745 | U40: 19712
C41: HV (Hybrid or Alt. Fuel Vehicles) | D41: 0 | E41: 0 | F41: 0 | G41: 0 | H41: 0 | I41: 0 | J41: 85200 | K41: 141000 | L41: 158526 | M41: 161700 | N41: 164930 | O41: 168230 | P41: 171590 | Q41: 175020 | R41: 178520 | S41: 182090 | T41: 185730 | U41: 189440
C42: EM (Electric Motorcycles) | D42: - | E42: - | F42: - | G42: - | H42: - | I42: - | J42: - | K42: - | L42: - | M42: 153 | N42: 344 | O42: 516 | P42: 619 | Q42: 743 | R42: 892 | S42: 1070 | T42: 1284 | U42: 1541
B43: Private Motorized Vehicles | D43: 6335643 | E43: 6553105 | F43: 6806310 | G43: 7002600 | H43: 7164610 | I43: 7174482 | J43: 7055500 | K43: 7852000 | L43: 7503050 | M43: 7590048 | N43: 7752060 | O43: 7905903 | P43: 8050951 | Q43: 8185373 | R43: 8283903 | S43: 8378122 | T43: 8473283 | U43: 8568269
B47: Source:
B48: Washington Office of Financial Management, June 2022 Transportation Revenue Forecasts, https://ofm.wa.gov/budget/budget-related-information/transportation-revenue-information

Sheet CNG Vehicle Registrations
C2: Washington CNG Vehicle Use Analysis
C4: CNG Vehicles
D5: Weighted Average Fuel Economy (MPGe) | E5: [1] | F5: 22.86956522
D6: Average Per Capita VMT in Washington (2017) | E6: [2] | F6: 8272
D7: Washington Avg. Annual CNG Consumption/Vehicle (GGE) | E7: [3] | F7: 361.7034221
D8: Total Number of CNG Vehicles | E8: [4] | F8: 276
C10: Sources:
C11: [1]: BRG Calculation
C12: [2] Eno Trans, VMT per Capita by State 1981-2017, https://www.enotrans.org/wp-content/uploads/2019/06/VMT-per-capita-by-state-1981-2017-1.pdf
C13: [3]: BRG Calculation
C14: [4] Washington Department of Licensing, Vehicle Registration Transactions Data, https://data.wa.gov/Transportation/Vehicle-Registration-Transactions-by-Department-of/brw6-jymh/data

Sheet Washington EV Data
C2: Washington Electric Vehicle Use Analysis | X2: Weighted Average Fuel Economy (Kwh/100 miles) | Y2: Average Per Capita VMT in Washington (2017) | Z2: Washington Avg. Annual Electricity Consumption/BEV (Kwh) | AB2: Weighted Average Fuel Economy (kWh/100 miles) | AC2: Weighted Average Fuel Economy (kWh/mile) | AD2: Weighted Average Electric Range (Miles) | AE2: Weighted Average Electric Range Used (Miles) | AF2: Estimated Electricity Use/Year/PHEV
C4: Battery Electric Vehicles (BEV)
D5: Weighted Average Fuel Economy (Kwh/100 miles) | E5: [1] | F5: 28.93452756
D6: Average Per Capita VMT in Washington (2017) | E6: [2] | F6: 8272
D7: Washington Avg. Annual Electricity Consumption (kWh/BEV) | E7: [3] | F7: 2393.46412
C10: Plug-in Hybrid Electric Vehicles (PHEV)
D11: Weighted Average Fuel Economy (kWh/100 miles) | E11: [4] | F11: 33.41911318
D12: Weighted Average Fuel Economy (kWh/mile) | E12: [5] | F12: 0.3341911318
D13: Weighted Average Electric Range (Miles) | E13: [6] | F13: 30.81504353
D14: Estimated VMT Using Electricity | E14: [7] | F14: =MIN($F$6*0.9,F13*365) -> 7444.8
D15: Estimated Electricity Use/Year/PHEV (kWh/PHEV) | E15: [8] | F15: =(F14/100)*F11 -> 2487.986138
C18: Sources and Notes:
C19: [1]: BRG analysis based on Washington Electric Vehicle Population Data, https://data.wa.gov/Transportation/Electric-Vehicle-Population-Data/f6w7-q2d2
C20: [2] Eno Trans, VMT per Capita by State 1981-2017, https://www.enotrans.org/wp-content/uploads/2019/06/VMT-per-capita-by-state-1981-2017-1.pdf
C21: [3]-[6]: BRG analysis based on Washington Electric Vehicle Population Data, https://data.wa.gov/Transportation/Electric-Vehicle-Population-Data/f6w7-q2d2
C22: [8]: BRG analysis based on Washington Electric Vehicle Population Data, https://data.wa.gov/Transportation/Electric-Vehicle-Population-Data/f6w7-q2d2

Sheet Propane EIA Data
C2: Pacific Transportation Sector Propane Consumption Forecast
C3: Fuel Type | D3: Units | E3: Source | F3: 2021 | G3: 2022 | H3: 2023 | I3: 2024
C4: Propane | D4: Quads | E4: [1] | F4: 0.001155 | G4: 0.001345 | H4: 0.001452 | I4: 0.001491
C5: Propane | D5: MM Gallons | F5: =((F4*(10^15))/'Fuel Consumption + Conversions'!$E$17)/1000000 -> 12.63399694 | G5: =((G4*(10^15)/'Fuel Consumption + Conversions'!$E$17)/1000000) -> 14.71231678 | H5: =((H4*(10^15)/'Fuel Consumption + Conversions'!$E$17)/1000000) -> 15.88273901 | I5: =((I4*(10^15)/'Fuel Consumption + Conversions'!$E$17)/1000000) -> 16.3093415
C7: Washington Allocation of Transportation Sector Propane Consumption in the Pacific Region
C8: Fuel Type | D8: Units | E8: Source | F8: 2014-2019 Consumption Average
C9: Propane | D9: % | E9: [2] | F9: 0.1562169312
C12: Source:
C13: [1]: U.S. Energy Information Administration, AEO 2022, https://www.eia.gov/outlooks/aeo/data/browser/#/?id=2-AEO2022&region=1-9&cases=ref2022&start=2020&end=2050&f=A&linechart=ref2022-d011222a.3-2-AEO2022.1-9&map=ref2022-d011222a.4-2-AEO2022.1-9&sourcekey=0https://www.eia.gov/outlooks/aeo/data/browser/#/?id=2-AEO2022&region=1-9&cases=ref2022&start=2020&end=2050&f=A&linechart=ref2022-d011222a.3-2-AEO2022.1-9&map=ref2022-d011222a.4-2-AEO2022.1-9&sourcekey=0
C14: [3]: Washington consumption as a percentage of the Pacific Region's Propane Consumption, U.S. Energy Information Administration, Table CT7, Transportation Sector Energy Consumption Estimates, 1960-2020, Washington; https://www.eia.gov/state/seds/data.php?incfile=/state/seds/sep_use/tra/use_tra_WA.html&sid=WA
